Cogmind - Beta 16 @@@ ROGUE MODE // 2025.11.17 @ 03:17:27 Player: cptwinky Result: Destroyed by S-43 Plague with Heavy Machine Gun Performance ------------- Evolutions (8) 4000 Regions Visited (34) 6800 Robots Destroyed (472) 2360 Value Destroyed (21259) 21259 Prototype IDs (146) 2920 Alien Tech Used (7) 1400 Bonus (27667) 27667 TOTAL SCORE: 66406 Bonus ------- High Alert Combat Kills 6507 Follower Combat Kills 1309 Registered with UFD 300 Met Optimus in HQ 500 Met Data Miner 300 Met Zhirov 300 MAIN.C Attacked Warlord 500 Warlord Defense Kills 1690 Hacked Protovariant 500 Scanned by Researcher 500 Destroyed Superfortress 15000 Met Optimus at Protoforge 1000 Friendly Fire -739 Cogmind --------- Core Integrity 0/1450 Matter 190/300 Energy 720/720 System Corruption 35% Temperature Cool (0) Movement Rolling (70) Location -2/Protoforge Parts ------- > --- POWER (2) -------- Concept Zero-point Core > --- PROPULSION (7) --- Overtuned Huge Scrapsphere Overtuned Huge Scrapsphere (fused) > --- UTILITY (13) ----- 0bPrime Scrap Suit Experimental Coolant Injector Advanced Energy Well Spectral Analyzer Experimental Targeting Computer Experimental Core Analyzer Graphene Brace (fused) Thermal Barrier > --- WEAPON (2) ------- Z-bomb Delivery System > --- INVENTORY (5) ---- Improved Quantum Reactor Large Storage Unit Concept NT7 Matterbank (52) Concept Plasma Driver Peak State ------------ > --- POWER ------------ Concept Zero-point Core Concept Zero-point Core > --- PROPULSION ------- Heavy Shield Leg Overtuned Huge Scrapsphere Overtuned Huge Scrapsphere > --- UTILITY ---------- Experimental Coolant Injector Large Storage Unit Spectral Analyzer Experimental Targeting Computer Experimental Core Analyzer Experimental Core Analyzer Experimental Armor Integrity Analyzer Concept Core Shell Advanced Powered Armor Concept RG22 Armor Concept RG22 Armor Graphene Brace Experimental Force Field > --- WEAPON ----------- Concept Plasma Driver Graviton Cannon > --- INVENTORY -------- Experimental Heat Sink Advanced Energy Well Advanced Matter Compressor Concept NT7 Matterbank Experimental Cloaking Device Concept Core Shell Thermal Barrier Concept Antimissile System Crosscalibrator Enhanced Nova Cannon Concept XC Strikerail Concept Helical Railcannon Hellfire Missile Launcher Z-bomb Delivery System [Rating: 224] Favorites ----------- Power Cooled Ion Engine Engine Cooled Ion Engine Power Core Light Fission Core Reactor Light Antimatter Reactor Propulsion Light Treads Treads Light Treads Leg Heavy Shield Leg Wheel Overtuned Huge Scrapsphere Hover Unit Combat Linear Gravjet Flight Unit Improved Flight Unit Utility Hacking Suite Device Experimental Sensor Array Storage High-capacity Storage Unit Processor Machine Analyzer Hackware Hacking Suite Protection Light Armor Plating Weapon Enhanced Autogun Energy Gun Improved Lightning Gun Energy Cannon Cooled Plasma Cannon Ballistic Gun Enhanced Autogun Ballistic Cannon Graviton Cannon Launcher Z-bomb Delivery System Special Weapon Improved Remote Datajack Impact Weapon Heavy Mace Slashing Weapon Power Sword Special Melee Weapon Improved Datajack Build | -11 -10 -10 -9 -9 -8 -8 -8 -8 -6 -6 -6 -6 -6 -6 -5 -5 -5 -5 -5 -5 -5 -4 -4 -4 -4 -4 -4 -4 -3 -3 -3 -2 -2 -2 ------- Run | Yrd Mat Min Mat Min Mat Sto Rec Scr Fac Was Fac Low Low Dat Pro Fac Was Fac Upp Upp War Pro Fac Was Fac Upp Upp Zhi Pro Res Qua Res Tes Frg Slots Evolved 16 | . . . 2 . 2 . . . 4 . . . . . . 2 . . . . . . 2 . . . . . . 2 . 2 . . Power 1 | . . . . . . . . . . . . . . . . 1 . . . . . . . . . . . . . . . . . . Propulsion 5 | . . . 1 . . . . . 2 . . . . . . 1 . . . . . . . . . . . . . . . 1 . . Utility 10 | . . . 1 . 2 . . . 2 . . . . . . . . . . . . . 2 . . . . . . 2 . 1 . . Weapon . | . . . . . . . . . . . . . . . . . . . . . . . . . . . . . . . . . . . Parts Attached 283 | 6 . 3 19 6 26 21 1 5 18 . 17 3 . . 3 2 . 3 1 1 10 4 12 3 28 . 1 9 . 2 6 12 12 49 Power 27 | 1 . . 2 1 2 2 . . 3 . 1 . . . . 1 . . . . . . 1 . 2 . . 2 . . 2 1 2 4 Engine 7 | 1 . . 2 . 2 1 . . . . . . . . . . . . . . . . . . . . . . . . . 1 . . Core 11 | . . . . 1 . 1 . . 3 . 1 . . . . 1 . . . . . . 1 . 1 . . . . . . . . 2 Reactor 9 | . . . . . . . . . . . . . . . . . . . . . . . . . 1 . . 2 . . 2 . 2 2 Propulsion 64 | 2 . 1 8 1 6 7 . . 5 . 5 . . . . . . . . . 3 1 1 1 7 . . 2 . . 1 2 3 8 Treads 19 | 2 . . 6 . 5 6 . . . . . . . . . . . . . . . . . . . . . . . . . . . . Leg 3 | . . . . . . . . . . . . . . . . . . . . . 1 . . . . . . 1 . . . . . 1 Wheel 8 | . . . 2 1 1 . . . . . . . . . . . . . . . . . . . . . . . . . . . . 4 Hover 20 | . . . . . . 1 . . . . . . . . . . . . . . 1 . . 1 7 . . 1 . . 1 2 3 3 Flight 14 | . . 1 . . . . . . 5 . 5 . . . . . . . . . 1 1 1 . . . . . . . . . . . Utility 134 | 1 . 2 6 . 12 6 . 1 8 . 7 2 . . 2 1 . 3 1 1 5 2 10 1 15 . 1 4 . 2 1 7 7 26 Device 51 | . . 2 1 . 3 2 . . 3 . 2 1 . . 1 . . 2 1 1 3 . 6 1 9 . . . . . . 1 3 9 Storage 12 | 1 . . 2 . 1 . . . . . 1 . . . . . . 1 . . . . 1 . 1 . . 2 . . . 1 . 1 Processor 22 | . . . . . 3 1 . . 2 . 2 . . . . 1 . . . . . . 1 . 2 . . 1 . . . 1 2 6 Hackware 17 | . . . . . . 1 . . 2 . 1 1 . . . . . . . . . 2 2 . 3 . . . . 1 1 2 1 . Protection 32 | . . . 3 . 5 2 . 1 1 . 1 . . . 1 . . . . . 2 . . . . . 1 1 . 1 . 2 1 10 Artifact . | . . . . . . . . . . . . . . . . . . . . . . . . . . . . . . . . . . . Weapon 58 | 2 . . 3 4 6 6 1 4 2 . 4 1 . . 1 . . . . . 2 1 . 1 4 . . 1 . . 2 2 . 11 Energy Gun 5 | . . . 1 1 . 1 1 . . . . . . . . . . . . . . 1 . . . . . . . . . . . . Energy Cannon 10 | . . . 1 . . 1 . . . . 1 . . . . . . . . . . . . . 2 . . . . . 2 1 . 2 Ballistic Gun 13 | 2 . . 1 . 2 3 . . . . . . . . . . . . . . . . . 1 . . . . . . . . . 4 Ballistic Cannon 7 | . . . . . 2 . . 1 . . . 1 . . . . . . . . . . . . . . . . . . . . . 3 Launcher 7 | . . . . 2 1 . . . . . 2 . . . . . . . . . . . . . 1 . . . . . . . . 1 Special Weapon 5 | . . . . . . 1 . 2 . . . . . . . . . . . . 1 . . . 1 . . . . . . . . . Impact Weapon 5 | . . . . 1 1 . . . 1 . . . . . . . . . . . . . . . . . . 1 . . . . . 1 Slashing Weapon 3 | . . . . . . . . . . . 1 . . . . . . . . . 1 . . . . . . . . . . 1 . . Piercing Weapon . | . . . . . . . . . . . . . . . . . . . . . . . . . . . . . . . . . . . Special Melee Weapon 3 | . . . . . . . . 1 1 . . . . . 1 . . . . . . . . . . . . . . . . . . . Unidentified Prototypes 42 | . . . . . . 3 . . 1 . 2 . . . 1 . . 2 . . 7 . . . . . . 5 . . 1 1 . 19 Corrupted Parts 1 | . . . . . . . . . . . . . . . . . . . . . . . . . . . . . . . . . 1 . System Corruption 1 | . . . . . . . . . . . . . . . . . . . . . . . . . . . . . . . . . 1 . Parts Lost 68 | . . . 1 1 3 3 . . . . 3 . . . . . . 1 . . 1 1 2 . 10 . . . 1 . 1 9 4 27 Power 7 | . . . 1 1 . . . . . . . . . . . . . . . . . . . . 2 . . . . . . 1 . 2 Propulsion 20 | . . . . . 2 . . . . . 1 . . . . . . . . . . . . . 2 . . . . . . 2 2 11 Utility 28 | . . . . . 1 3 . . . . . . . . . . . . . . 1 1 2 . 3 . . . . . 1 4 2 10 Weapon 13 | . . . . . . . . . . . 2 . . . . . . 1 . . . . . . 3 . . . 1 . . 2 . 4 Highest Loss Streak 13 | . . . 1 1 1 1 . . . . 1 . . . . . . 1 . . 1 1 1 . 7 . . . 1 . 1 3 2 13 To Critical Strikes . | . . . . . . . . . . . . . . . . . . . . . . . . . . . . . . . . . . . Average Backups 13 | 3 7 8 14 19 19 19 20 15 5 5 7 9 9 10 9 9 10 10 9 9 10 10 9 10 9 10 10 9 10 9 9 8 12 10 Power . | . 1 1 1 . . 2 2 . . . . 1 1 1 1 . . . . . . . . . . 1 1 . . . . . . . Propulsion 2 | 1 2 1 3 6 4 4 5 2 . . . 1 1 1 1 . . . . . . 1 . . . 1 1 . . . . . 1 . Utility 5 | . 1 2 5 7 6 5 8 7 2 2 4 4 4 5 4 6 7 7 6 6 6 5 6 6 5 5 5 5 6 5 4 3 3 5 Weapon 3 | . 2 2 4 4 6 5 4 4 2 2 2 3 3 3 3 3 3 3 3 3 3 3 2 3 2 3 3 2 3 3 2 2 4 3 Tool/Special . | . . . . . . . . . . . . . . . . . . . . . . . . . . . . . . . . . . . Unused Backups 79 | . 2 2 3 . 6 3 . 20 19 . 4 . . . . . 1 . . . 1 1 1 . 3 . . . . 2 3 1 1 6 Power 10 | . . . . . 1 . . 4 3 . 1 . . . . . . . . . . . . . . . . . . . . . . 1 Propulsion 12 | . . 1 1 . . . . 5 4 . . . . . . . . . . . . . . . . . . . . . . . . 1 Utility 34 | . . . . . 3 . . 8 8 . 2 . . . . . 1 . . . 1 1 1 . 1 . . . . 2 2 1 1 2 Weapon 21 | . 2 1 2 . 2 3 . 3 4 . 1 . . . . . . . . . . . . . 2 . . . . . . . . 1 Tool/Special 2 | . . . . . . . . . . . . . . . . . . . . . . . . . . . . . . . 1 . . 1 Average Slot Usage (%) 95 | . 85 95 98 100 99 97 99 99 97 100 93 93 93 93 95 98 100 96 94 94 91 88 89 95 96 100 100 97 96 94 97 90 91 82 Engine 4 | . 14 14 11 8 6 6 9 9 . . . . . . . . . . . . 1 . . . . . . . . . . . 2 . Core 3 | . . . . 2 2 2 . . 5 6 6 6 6 6 6 10 11 11 11 11 7 5 5 10 6 5 5 2 . . . . . 6 Reactor 1 | . . . . . . . . . . . . . . . . . . . . . . . . . 2 5 5 7 10 9 8 7 5 1 Treads 12 | . 28 27 22 22 21 26 27 27 1 . . . . . . . . . . . . . . . . . . . . . . . . . Wheel 2 | . . . 11 11 5 . . . . . . . . . . . . . . . . . . . . . . . . . . . . 8 Hover 4 | . . . . . . . . . . . . . . . . . . . . . . . . . 22 30 30 30 30 27 27 25 26 5 Flight 8 | . . . . . . . . . 30 33 32 33 33 33 31 31 33 33 33 33 32 33 29 29 6 . . . . . . . . . Device 6 | . . 9 11 11 2 . . . 7 6 5 4 5 . 5 5 5 4 4 3 1 4 9 14 14 15 15 11 11 17 15 13 15 16 Storage 7 | . 14 14 11 11 9 9 9 9 . . 4 6 6 6 6 5 5 5 5 5 5 5 5 5 5 5 5 7 5 4 4 4 4 6 Processor 12 | . . . . . 16 18 18 18 13 13 13 13 13 13 12 11 11 11 11 11 11 11 8 10 10 10 10 11 15 13 13 12 14 17 Hackware 9 | . . . . . . 3 9 9 18 20 20 20 20 20 18 16 16 16 16 16 16 21 21 20 15 15 15 13 10 13 15 16 10 1 Protection 7 | . . . 9 11 17 12 9 9 3 6 1 1 . 6 4 5 5 6 5 6 8 . 4 . 3 5 5 5 8 4 3 1 6 7 Energy Cannon 1 | . . . 9 . . . . . 1 . . . . . 1 . . . . . . 2 . . 2 5 4 . 4 4 6 6 . 1 Ballistic Gun 7 | . 28 28 11 9 13 17 17 9 . . . . . . . . . . . . . . . 2 . . . . . . . . . 3 Slashing Weapon 1 | . . . . . . . . . . . 5 3 3 6 4 5 5 4 5 5 2 2 4 2 3 . . . . . . . 4 . Peak Build Rating 224 | 6 7 10 21 21 36 36 34 38 59 59 62 64 65 58 70 78 78 81 75 80 77 73 96 100 135 134 132 139 139 137 156 172 197 224 Average Rating 73 | 5 6 9 15 20 32 32 33 33 50 58 57 61 63 57 67 75 78 74 72 73 68 67 82 95 120 132 127 130 128 136 144 160 180 201 On Entrance 74 | . 6 7 10 21 20 34 34 34 32 57 59 57 57 58 57 70 78 78 70 75 70 68 67 96 93 134 132 127 139 125 137 156 166 197 Avg Prop Armor Cover (%) 7 | . . . 15 14 11 . . . 5 . 4 . . . . 6 . . . . . . 3 . 4 4 4 4 2 2 2 . 1 12 Naked Turns . | . . . . . . . . . . . . . . . . . . . . . . . . . . . . . . . . . . . Heaviest Build 111 | 11 11 12 100 65 75 72 57 59 55 16 25 25 25 24 25 29 28 30 29 29 36 29 35 36 49 49 50 61 61 54 72 83 74 111 Greatest Support 103 | 40 40 40 16 16 62 62 60 60 60 25 25 25 25 25 25 30 30 42 30 30 33 30 35 35 81 51 51 67 67 76 91 103 101 101 Greatest Overweight (x) 10 | . . . 9 4 4 1 . . 1 . 1 . . . . 2 . . . . 1 . 1 1 10 . . . . . 1 . . 5 Average Overweight (x) . | . . . 6 3 2 . . . . . . . . . . . . . . . . . . . . . . . . . . . . 1 Largest Inventory Capacity 25 | 8 8 8 25 20 20 20 20 20 20 5 10 10 10 10 10 10 10 10 10 10 10 10 10 10 10 10 10 10 10 10 10 15 15 15 Average Capacity 14 | 7 8 8 23 20 20 20 20 20 6 5 8 10 10 10 10 10 10 10 10 10 10 10 10 10 10 10 10 10 10 10 10 12 15 14 Most Carried 24 | 6 8 8 24 20 20 20 20 20 18 5 10 10 10 10 10 10 10 10 10 10 10 10 10 10 10 10 10 10 10 10 10 13 15 15 Average Carried 13 | 3 7 7 14 19 19 19 20 15 5 5 7 9 9 10 9 9 10 9 9 9 9 9 9 9 9 10 10 9 9 9 9 10 14 12 Final Capacity 20 | 8 8 8 20 20 20 20 20 20 5 5 10 10 10 10 10 10 10 10 10 10 10 10 10 10 10 10 10 10 10 10 10 15 15 5 Final Carried 20 | 6 8 8 20 20 20 20 20 18 5 5 10 9 10 10 10 10 10 10 9 10 10 10 10 10 10 10 10 10 10 10 10 12 14 4 Scrap Suit Usage (%) 1 | . . . . . . . . . . . . . . . . . . . . . . . . . . . . . . . . . . 1 Parts Cannibalized 3 | . . . . . . . . . . . . . . . . . . . . . . . . . . . . . . . . . . 3 Class Distribution -------------------- 24% | Hacker-Scout 20% | Commander-Mutant 18% | Scavenger-Mutant 14% | Mutant 7% | Hacker-Mutant 4% | Hacker-Sprinter 3% | Scavenger-Scrapper Dominant Class ---------------- Mutant | -10/Materials Mutant | -10/Mines Mutant | -9/Materials Scavenger-Mutant | -9/Mines Scavenger-Mutant | -8/Materials Mutant | -8/Storage Commander-Mutant | -8/Recycling Commander-Mutant | -8/Scraptown Hacker-Scout | -6/Factory Hacker-Scout | -6/Waste Hacker-Scout | -6/Factory Hacker-Scout | -6/Lower Caves Hacker-Scout | -6/Lower Caves Hacker-Sprinter | -6/Data Miner Hacker-Scout | -5/Proximity Caves Hacker-Scout | -5/Factory Hacker-Scout | -5/Waste Hacker-Scout | -5/Factory Hacker-Sprinter | -5/Upper Caves Hacker-Scout | -5/Upper Caves Hacker-Mutant | -5/Warlord Hacker-Scout | -4/Proximity Caves Hacker-Sprinter | -4/Factory Hacker-Sprinter | -4/Waste Hacker-Scout | -4/Factory Hacker-Scout | -4/Upper Caves Hacker-Scout | -4/Upper Caves Hacker-Scout | -4/Zhirov Machinist-Scout | -3/Proximity Caves Hacker-Scout | -3/Research Hacker-Mutant | -3/Quarantine Hacker-Mutant | -2/Research Hacker-Mutant | -2/Testing Scavenger-Mutant | -2/Protoforge Resources | -11 -10 -10 -9 -9 -8 -8 -8 -8 -6 -6 -6 -6 -6 -6 -5 -5 -5 -5 -5 -5 -5 -4 -4 -4 -4 -4 -4 -4 -3 -3 -3 -2 -2 -2 ----------- Run | Yrd Mat Min Mat Min Mat Sto Rec Scr Fac Was Fac Low Low Dat Pro Fac Was Fac Upp Upp War Pro Fac Was Fac Upp Upp Zhi Pro Res Qua Res Tes Frg Matter Collected 20605 | 276 24 126 626 322 1460 1079 120 80 287 . 462 381 407 . 110 . . 305 6 210 817 391 98 388 711 47 131 148 422 171 270 412 220 10098 Remotely . | . . . . . . . . . . . . . . . . . . . . . . . . . . . . . . . . . . . Salvage Created 18558 | 37 37 207 1485 367 1963 1508 342 313 765 . 722 250 323 . 156 . . 152 . 116 625 418 125 284 1578 . 187 191 470 29 1040 1418 191 3259 Parts 861 | 8 5 14 88 14 102 94 20 15 13 . 39 16 5 . 9 . . 7 . 5 24 17 11 9 78 . 6 1 14 5 30 55 9 148 Haulers Intercepted 23 | . . . 3 . 4 6 . . 1 . 3 . . . . . . . . . . . . . 2 . . . . . 2 1 . 1 Recyclers Shooed 7 | . . 2 1 . . . . . . . 1 . . . . . . . . . . . 1 . 1 . . . . . 1 . . . Parts Field Recycled . | . . . . . . . . . . . . . . . . . . . . . . . . . . . . . . . . . . . Retrieved Matter . | . . . . . . . . . . . . . . . . . . . . . . . . . . . . . . . . . . . Parts Self-Destructed 54 | . . . . . . . . . . . . 14 15 . 2 . . . . . . 15 . . . . 2 . 6 . . . . . Prevented 3 | . . . . . . . . . . . . . . . . . . . . . . . . . . . 2 . 1 . . . . . Parts Restored 2 | . . . . . . . . . . . . . . . . . . . . . . . . . . . . . . . . . . 2 Faulty 2 | . . . . . . . . . . . . . . . . . . . . . . . . . . . . . . . . . . 2 Kills | -11 -10 -10 -9 -9 -8 -8 -8 -8 -6 -6 -6 -6 -6 -6 -5 -5 -5 -5 -5 -5 -5 -4 -4 -4 -4 -4 -4 -4 -3 -3 -3 -2 -2 -2 ------- Run | Yrd Mat Min Mat Min Mat Sto Rec Scr Fac Was Fac Low Low Dat Pro Fac Was Fac Upp Upp War Pro Fac Was Fac Upp Upp Zhi Pro Res Qua Res Tes Frg Combat Hostiles Destroyed 375 | . 3 6 26 20 46 24 3 . 5 . 5 5 5 . . . . . . . 15 11 6 1 19 . 3 . 11 . 8 23 1 129 Melee 20 | . . . . . 1 . . . 2 . 3 2 1 . . . . . . . . . 1 . 7 . . . . . . 1 1 1 Guns 107 | . 3 6 13 5 21 19 3 . . . . . . . . . . . . . . . . 1 1 . . . . . . . . 35 Cannons 64 | . . . 11 . 7 . . . 1 . . 3 2 . . . . . . . 7 1 . . 2 . 1 . 1 . 2 4 . 22 AOE 160 | . . . . 14 13 5 . . 2 . 2 . 2 . . . . . . . 8 9 5 . 5 . 2 . 9 . 3 13 . 68 Classes Destroyed 29 | 1 1 2 6 1 3 2 . . 1 . . 1 . . 1 . . . . . . . . 2 . . . . 1 . . . . 7 Worker 19 | . . . 2 . 1 1 . . 1 . 3 . . . . . . 2 . . . . . . 5 . . . . . . 2 1 1 Builder 8 | . . . . . . 1 . . 1 . . . . . . . . . . . . . . . 4 . . . . . 1 1 . . Tunneler 3 | 2 . 1 . . . . . . . . . . . . . . . . . . . . . . . . . . . . . . . . Hauler 23 | . . . 3 . 4 6 . . 1 . 3 . . . . . . . . . . . . . 2 . . . . . 2 1 . 1 Recycler 15 | . . 1 2 1 . 1 2 . 3 . 1 . . . . . . 1 . . . . . . 1 . . . . . 2 . . . Carrier 1 | . . . . . . . . . . . . . . . . . . . . . . . . . . . . . . . . . . 1 Minesweeper 2 | . . . . . . . . . . . . . . . 1 . . . . . . . . . . . . . 1 . . . . . Mechanic 8 | . . . . . 2 1 . . . . . . . . . . . . . . 1 . . . . . . . . . . . . 4 Operator 13 | . . . 1 . 2 1 . . 1 . 2 . . . . . . . . . . . . . 1 . . . . 1 1 1 1 1 Drone 21 | . . . . . . . . . . . . . . . . . . . . . . . . . . . . . 2 . . . . 19 Watcher 9 | . . . 1 . 2 . . . 1 . 1 . . . . . . . . . . . . . 1 . . . . . 1 . 2 . Swarmer 73 | . 3 4 3 3 9 5 . . . . 2 2 . . . . . . . . . 9 5 . 4 . 2 . 6 . . 4 . 12 Saboteur 2 | . . . . . . . . . . . . . . . . . . . . . . . . . . . . . . . . . . 2 Grunt 145 | . . 2 16 5 27 10 . 6 4 . 1 . 4 . . . . . . . 11 . . . 5 . . . 2 . 6 8 1 37 Brawler 7 | . . . 1 . . . . . . . . . 1 . . . . . . . 3 . . . . . . . . . 1 . . 1 Duelist 9 | . . . . . 1 2 . . . . . . . . . . . . . . . . . . . . . . . . . . . 6 Protector 6 | . . . . . . 1 . . . . . . . . . . . . . . 1 . . . . . . . . . . . . 4 Researcher 1 | . . . . . . . . . . . . . . . . . . . . . . . . . . . . . . . . . . 1 Sentry 35 | . . . 6 . 8 5 3 . . . . 1 . . . . . . . . . . . . 1 . 1 . 1 . . 4 . 5 Specialist 3 | . . . . . . . . . . . . . . . . . . . . . . . . . . . . . . . . . . 3 Hunter 22 | . . . . . 1 1 . . . . . . . . . . . . . . . . 1 . 3 . . . . . . 5 . 11 Programmer 26 | . . . . . . . . . 1 . 2 2 . . . . . . . . . . . . 6 . . . . . 1 2 . 12 Compactor 1 | . . . . . . . . . . . . . . . . . . . . . . . . 1 . . . . . . . . . . Hotshot 3 | . . . . . . . . . . . . . . . . . . . . . . . . . . . . . . . . . . 3 Striker 8 | . . . . . . . . . . . . . . . . . . . . . . . . . . . . . . . . . . 8 Executioner 5 | . . . . . . . . . . . . . . . . . . . . . . . . . . . . . . . . . . 5 V-Series 1 | . . . . . . . . . . . . . . . . . . . . . . . . . . . . . . . . . . 1 Decomposer 1 | . . . . . . . . . . . . . . . . . . . . . . . . . . . 1 . . . . . . . Packrat 2 | . . . . . . . . . . . . . . . . . . . . . . . . . . . . . 2 . . . . . Samaritan 3 | . . . . . . . . . . . . 1 . . . . . . . 2 . . . . . . . . . . . . . . Assembled 12 | . . . . 12 . . . . . . . . . . . . . . . . . . . . . . . . . . . . . . Thug 1 | . . . . . . . . . . . . . . . . . . . . . . 1 . . . . . . . . . . . . Butcher 2 | . . . . . . . . . . . . . 1 . . . . . . . . 1 . . . . . . . . . . . . Martyr 1 | . . . . . . . . . . . . . . . . . . . . . . . . 1 . . . . . . . . . . Best Kill Streak 23 | 1 3 4 7 12 6 7 2 . 5 . 4 2 3 . 1 . . 2 . . 9 5 5 1 8 . 3 . 8 1 4 15 2 23 Combat Bots Only 22 | . 3 3 6 12 6 6 1 . 4 . 3 2 3 . . . . . . . 8 5 5 1 5 . 3 . 8 . 3 11 1 22 Max Kills in Single Turn 7 | 1 1 1 1 3 4 3 1 1 2 . 3 1 2 . 1 . . 1 . 1 2 3 5 1 4 . 2 . 3 1 3 4 1 7 Gunslinging 1 | . . . . . . . . . . . . . . . . . . . . . . . . . . . . . . . . . . 1 Exploded 6 | . . . . 3 2 2 . . 2 . 2 . 2 . . . . . . . 2 3 5 . 4 . 2 . 3 . 1 4 . 6 Melee 1 | . . . . . 1 . . . 1 . 1 1 1 . . . . . . . . . 1 . 1 . . . . . . 1 1 1 Uniques/NPCs Destroyed . | . . . . . . . . . . . . . . . . . . . . . . . . . . . . . . . . . . . Combat | -11 -10 -10 -9 -9 -8 -8 -8 -8 -6 -6 -6 -6 -6 -6 -5 -5 -5 -5 -5 -5 -5 -4 -4 -4 -4 -4 -4 -4 -3 -3 -3 -2 -2 -2 -------- Run | Yrd Mat Min Mat Min Mat Sto Rec Scr Fac Was Fac Low Low Dat Pro Fac Was Fac Upp Upp War Pro Fac Was Fac Upp Upp Zhi Pro Res Qua Res Tes Frg Hostile Shots Fired 1646 | . 12 29 103 45 165 71 4 . 28 . 85 9 14 . . 1 . 18 . 3 45 10 35 . 208 . 6 . 20 . 33 190 27 485 Missed 593 | . 7 7 33 8 46 22 1 . 12 . 45 5 3 . . 1 . 8 . 2 20 2 22 . 81 . 4 . 6 . 18 70 17 153 Hits 1053 | . 5 22 70 37 119 49 3 . 16 . 40 4 11 . . . . 10 . 1 25 8 13 . 127 . 2 . 14 . 15 120 10 332 Melee 11 | . . . . 3 2 1 . . . . . . . . . . . . . . . . . . . . . . . . . . . 5 Projectile 1042 | . 5 22 70 34 117 48 3 . 16 . 40 4 11 . . . . 10 . 1 25 8 13 . 127 . 2 . 14 . 15 120 10 327 Critical Strikes 49 | . . . 1 1 7 5 . . . . . . . . . . . . . . 3 . 1 . 6 . . . . . 1 5 1 18 Actively Blocked 32 | . . . . . . . . . . . . . . . . . . . . . 1 . . . 6 . . . . . 1 5 1 18 Part Disruptions 5 | . . . . . . . . . . . . . . . . . . . . . . . . . 2 . . . . . . . 1 2 Damage Taken 21624 | . 37 213 838 686 1755 823 42 . 376 . 425 55 202 . . . . 403 . 26 462 114 379 136 2482 . 52 . 343 . 323 2318 706 8428 Core 3246 | . . 47 98 109 185 179 . . 66 . 110 17 32 . . . . 171 . 26 80 41 101 6 506 . . . 29 . 22 350 72 999 Absorbed by Shields 2010 | . . . . . . . . . 7 . . . . . . . . . . . 160 59 37 . . . . . . . . . . 1747 Redirected to Shielding 544 | . . . . . . . . . . . . . . . . . . 31 . . 53 9 . . . . . . 133 . . . 46 272 Ignored by Resistances 599 | . . . . . 76 . . . 4 . . . . . . . . . . . . . . . . . . . . . . . . 519 Regen/Repaired (Parts) 2641 | . . . . . 196 103 . . . . 14 . . . . 117 . . . . 34 . 415 238 832 . . . . . . 20 359 313 Core Remaining (%) 68 | 100 . 81 . 48 . . . 33 . . . . . . 73 . . . . . . 68 . . . . . . 44 . 98 . . . Volleys Fired 1215 | 4 6 19 82 36 125 83 10 27 21 . 13 28 29 . 4 . . 11 . 3 50 66 5 7 86 . 11 4 27 24 94 81 . 259 Largest 2 | 2 2 2 2 2 2 2 2 1 1 . 1 1 1 . 1 . . 1 . 1 1 1 1 1 1 . 1 1 1 1 1 2 . 2 Hottest 240 | 40 40 40 83 96 96 50 50 60 35 . 43 51 51 . 35 . . 51 . 51 51 65 39 40 81 . 81 7 81 35 113 233 . 240 Shots Fired 1659 | 8 12 38 164 61 237 163 20 27 22 . 13 28 29 . 4 . . 12 . 3 49 66 5 7 86 . 11 4 26 24 94 83 . 363 Gun 764 | 8 12 38 90 50 183 160 20 24 1 . . . . . . . . . . . . 13 . 7 10 . . . . . . . . 148 Cannon 778 | . . . 74 . 42 . . . 21 . 11 28 26 . 4 . . 12 . 3 36 49 4 . 75 . 10 . 21 24 92 72 . 174 Launcher 110 | . . . . 11 12 3 . . . . 2 . 3 . . . . . . . 13 4 1 . 1 . 1 . 5 . 2 11 . 41 Special 7 | . . . . . . . . 3 . . . . . . . . . . . . . . . . . . . 4 . . . . . . Kinetic 904 | 8 12 38 90 24 209 160 20 . 1 . . 26 26 . . . . 1 . 1 36 18 . 7 10 . . . . . . . . 217 Thermal 519 | . . . 74 26 16 . . . 21 . 11 2 . . 4 . . 11 . 2 . 31 4 . 56 . 8 . 13 24 72 39 . 105 Explosive 110 | . . . . 11 12 3 . . . . 2 . 3 . . . . . . . 13 4 1 . 1 . 1 . 5 . 2 11 . 41 Electromagnetic 119 | . . . . . . . . 24 . . . . . . . . . . . . . 13 . . 19 . 2 . 8 . 20 33 . . Robot Hit Streak 31 | 4 2 6 16 9 14 11 11 10 9 . . 10 11 . . . . . . 4 5 7 . 8 12 . 15 4 4 4 18 19 . 31 Robot Miss Streak 5 | 1 4 4 5 3 5 4 3 2 1 . 2 1 1 . . . . . . . 3 4 . . 4 . 1 1 1 . 2 4 . 2 Penetration Max 2 | . . . . . . . . . . . . . . . . . . . . . 2 . . . . . . . . . . . . 1 Secondary Targets 10 | . 1 . . 1 2 2 . . . . . . . . . . . . . . . . . . . . . . . . . . . 4 Max Gunslinging Chain 1 | . 1 . . 1 1 1 . . . . . . . . . . . . . . . . . . . . . . . . . . . 1 Shots Hit Robots 1065 | 5 4 20 114 30 171 112 13 23 18 . 27 17 24 . 7 1 . 4 . 6 16 24 5 9 81 . 7 7 12 1 37 42 6 222 Core Hits 751 | 2 4 12 49 40 116 59 6 8 12 . 13 9 13 . 4 . . 3 . 1 62 17 8 2 40 . 5 1 20 1 22 42 3 177 Critical Kills 36 | . . . 5 . 1 . . . 1 . . 3 2 . . . . . . . 7 1 . 1 1 . . 1 1 . . . . 12 Critical Parts Destroyed 36 | . . . . . 1 1 . . 1 . . 2 2 . . . . . . . 10 1 . . 1 . . . . . . . . 17 Critical Strikes 89 | . . . 5 3 3 1 . . 2 . 1 5 4 . . . . . . 1 17 2 1 3 7 . . 1 1 . . . . 32 Burn 4 | . . . . 3 1 . . . . . . . . . . . . . . . . . . . . . . . . . . . . . Meltdown 6 | . . . 2 . . . . . . . . . . . . . . . . . . . . . . . . . 1 . . . . 3 Destroy 64 | . . . 3 . 1 1 . . . . . 5 4 . . . . . . 1 17 2 . 2 2 . . . . . . . . 26 Blast 3 | . . . . . . . . . . . . . . . . . . . . . . . . . . . . . . . . . . 3 Smash 4 | . . . . . 1 . . . 2 . . . . . . . . . . . . . . . . . . 1 . . . . . . Sever 8 | . . . . . . . . . . . 1 . . . . . . . . . . . 1 1 5 . . . . . . . . . Melee Attacks 379 | . . . . 2 19 4 . 1 34 . 90 9 20 . 8 7 . 28 . 9 . 5 17 3 71 . . 4 . . . 4 31 13 Kinetic 1 | . . . . . . . . . . . . . . . . . . . . . . . . . . . . . . . . . . 1 Impact 65 | . . . . 2 19 4 . . 32 . 4 . . . . . . . . . . . . . . . . 4 . . . . . . Slashing 309 | . . . . . . . . . . . 86 9 20 . 8 6 . 28 . 9 . 5 17 3 71 . . . . . . 4 31 12 Piercing . | . . . . . . . . . . . . . . . . . . . . . . . . . . . . . . . . . . . Sneak Attacks 39 | . . . . . . . . 1 5 . 7 1 1 . 1 1 . 3 . 3 . . 2 3 8 . . . . . . . 2 1 Combat Hostiles 2 | . . . . . . . . . . . 1 . . . . . . . . . . . 1 . . . . . . . . . . . Follow-up Attacks . | . . . . . . . . . . . . . . . . . . . . . . . . . . . . . . . . . . . Damage Inflicted 68139 | 54 41 250 1843 1264 4608 2573 245 500 1582 . 1907 460 800 . 565 . . 311 . 514 2955 1457 735 304 4287 . 440 387 1499 34 1986 4833 617 31088 Guns 11038 | 54 41 242 889 434 1963 1955 245 500 19 . . . . . . . . . . . . 111 . 49 91 . . . . . . . . 4445 Cannons 12860 | . . . 954 . 683 . . . 267 . . 205 211 . . . . . . 20 498 162 . . 1341 . 234 . 353 34 1377 1524 . 4997 Explosions 35812 | . . . . 830 1473 605 . . 829 . 378 . 339 . . . . . . . 2457 978 461 . 1015 . 206 . 1146 . 609 3130 . 21356 Melee 8392 | . . . . . 489 . . . 467 . 1529 255 250 . 565 . . 311 . 494 . 206 274 255 1840 . . 387 . . . 179 617 274 Ramming 37 | . . 8 . . . 13 . . . . . . . . . . . . . . . . . . . . . . . . . . . 16 Kinetic 13709 | 54 41 242 889 173 2496 1955 245 . 19 . . 205 211 . . . . . . 20 498 38 . 49 91 . . . . . . . . 6483 Thermal 7990 | . . . 954 261 150 . . . 432 . 170 . . . . . . . . . . 124 172 . 838 . 172 . 100 34 925 652 . 3006 Explosive 34978 | . . . . 830 1473 605 . . 664 . 208 . 339 . . . . . . . 2457 944 289 . 979 . 206 . 1146 . 522 2960 . 21356 Electromagnetic 3080 | . . . . . . . . 500 . . . . . . . . . . . . . 145 . . 539 . 62 . 253 . 539 1042 . . Impact 1343 | . . . . . 489 . . . 467 . . . . . . . . . . . . . . . . . . 387 . . . . . . Slashing 7002 | . . . . . . . . . . . 1529 255 250 . 565 . . 311 . 494 . 206 274 255 1840 . . . . . . 179 617 227 Piercing . | . . . . . . . . . . . . . . . . . . . . . . . . . . . . . . . . . . . Highest Corruption 35 | . 5 5 1 1 . . . . 3 5 5 1 . . . . 7 8 8 1 1 1 2 . 12 2 2 2 2 . 1 3 17 35 Average Corruption 9 | . 4 5 1 1 . . . . 2 5 2 1 . . . . 7 7 3 1 1 1 1 . 5 2 2 2 2 . 1 2 14 28 Corruption Purged 33 | . . . . . . . . . 5 . 4 1 . . . . . . 7 1 . . 2 . 13 . . . . . . . . . Corruption Blocked . | . . . . . . . . . . . . . . . . . . . . . . . . . . . . . . . . . . . Effects 314 | . 6 20 3 6 . . . . 6 . 13 . . . . . . 17 4 1 3 3 . . 26 1 6 2 6 . 1 2 17 171 Message Errors 63 | . 1 5 . 3 . . . . 3 . 2 . . . . . . 3 . 1 1 1 . . 7 . 1 . 1 . . . 4 30 Matter Fused 78 | . 2 4 . 2 . . . . . . 4 . . . . . . 7 . . 1 1 . . 9 . 1 1 1 . 1 . 3 41 Heat Flow Errors 41 | . 1 4 1 . . . . . 1 . 3 . . . . . . 1 . . . . . . . 1 1 1 1 . . . 4 22 Energy Discharges 31 | . . 2 . . . . . . 1 . 2 . . . . . . . 2 . . . . . 1 . . . 1 . . 2 2 18 Parts Rejected 7 | . . . . . . . . . . . . . . . . . . 1 . . . . . . . . . . . . . . 1 5 Parts Fused 7 | . 1 . . . . . . . . . . . . . . . . 1 . . . . . . 1 . . . . . . . . 4 Data Loss (minor) 39 | . 1 5 1 . . . . . . . 2 . . . . . . . 1 . . . . . 7 . 1 . 1 . . . 2 18 Data Loss (major) 11 | . . . 1 . . . . . . . . . . . . . . 2 . . . . . . 1 . 1 . . . . . . 6 Misfires 2 | . . . . . . . . . 1 . . . . . . . . 1 . . . . . . . . . . . . . . . . Alerts 7 | . . . . 1 . . . . . . . . . . . . . 1 1 . . 1 . . . . 1 . . . . . . 2 Misdirections 5 | . . . . . . . . . . . . . . . . . . . . . . . . . . . . . . . . . 1 4 Weapon Failures 23 | . . . . . . . . . . . . . . . . . . . . . 1 . . . . . . . 1 . . . . 21 Overload Shots 1 | . . . . . . . . . . . . . . . . . . . . . . . . . . . . . . . 1 . . . Overflow Damage 5474 | . . . 7 45 109 14 . . 178 . 323 16 78 . 187 . . 49 . 243 22 110 . 46 141 . 92 194 205 . 86 231 207 2891 Projectiles 410 | . . . 7 . . . . . 23 . . . . . . . . . . . . 20 . . 66 . 76 . 58 . 78 40 . 42 Explosions 3408 | . . . . 45 10 14 . . 41 . 88 . . . . . . . . . 22 57 . . 47 . 16 . 147 . 8 160 . 2753 Melee 1656 | . . . . . 99 . . . 114 . 235 16 78 . 187 . . 49 . 243 . 33 . 46 28 . . 194 . . . 31 207 96 Knockbacks 33 | . . . . . 18 . . . 1 . . . 2 . . . . . . . . . . . . . . . . . . . . 12 Impact 1 | . . . . . . . . . 1 . . . . . . . . . . . . . . . . . . . . . . . . . Kinetic 31 | . . . . . 17 . . . . . . . 2 . . . . . . . . . . . . . . . . . . . . 12 Secondary 1 | . . . . . 1 . . . . . . . . . . . . . . . . . . . . . . . . . . . . . Self-Inflicted Damage 1399 | . . . . 146 47 36 . . 82 . 65 . . . . . . 172 . . 62 58 133 . . . . . . . . . . 598 Shots 21 | . . . . 5 2 1 . . 1 . 1 . . . . . . 2 . . 2 2 2 . . . . . . . . . . 3 Rammed 7 | . . 3 . . . 3 . . . . . . . . . . . . . . . . . . . . . . . . . . . 1 Targets Rammed 8 | . . 4 . . . 3 . . . . . . . . . . . . . . . . . . . . . . . . . . . 1 Kicked . | . . . . . . . . . . . . . . . . . . . . . . . . . . . . . . . . . . . Crushed 1 | . . 1 . . . . . . . . . . . . . . . . . . . . . . . . . . . . . . . . Highest Temperature 251 | . 98 251 100 29 206 226 9 48 119 . 176 24 59 . 6 42 4 115 40 28 34 70 186 . 61 220 200 239 82 . . 195 177 216 Average Temperature 32 | . 51 74 19 14 51 62 9 17 28 . 48 9 30 . 6 4 2 6 11 4 9 19 26 . 21 114 72 142 25 . . 43 36 76 Received Heat Transfer 2739 | . . 48 342 141 765 351 9 . 36 . 63 . 63 . . . . 27 . . 140 . 22 . 201 . . . 18 . 42 198 . 273 Effects 1 | . . . . . . 1 . . . . . . . . . . . . . . . . . . . . . . . . . . . . Interference 1 | . . . . . . 1 . . . . . . . . . . . . . . . . . . . . . . . . . . . . Siege Activations . | . . . . . . . . . . . . . . . . . . . . . . . . . . . . . . . . . . . Martial Activations . | . . . . . . . . . . . . . . . . . . . . . . . . . . . . . . . . . . . Shielding Activations . | . . . . . . . . . . . . . . . . . . . . . . . . . . . . . . . . . . . Robots Disrupted . | . . . . . . . . . . . . . . . . . . . . . . . . . . . . . . . . . . . Combat Hostiles . | . . . . . . . . . . . . . . . . . . . . . . . . . . . . . . . . . . . Robots Corrupted 23 | . . . . . 4 . . 2 2 . . . . . . . . . . . . 1 . . 4 . . 1 1 . 3 5 . . Combat Hostiles 19 | . . . . . 4 . . . . . . . . . . . . . . . . 1 . . 4 . . 1 1 . 3 5 . . Parts Fried 21 | . . . . . 2 . . 1 4 . . . . . . . . . . . . 2 . . 4 . . . 1 . 4 3 . . Impact Corruptions 15 | . . . . . 5 . . . 4 . . . . . . . . . . . . . . . . . . 6 . . . . . . Robots Melted 8 | . . . 2 1 . . . . . . . . . . . . . . . . . . . . 1 . . . 1 . . . . 3 Combat Hostiles 6 | . . . 2 1 . . . . . . . . . . . . . . . . . . . . . . . . . . . . . 3 Parts Melted 13 | . . . 1 . 1 . . . 2 . . . . . . . . . . . . . . . 5 . . . . . . . . 4 Heat Transferred 8915 | . . . 1924 876 422 . . . 450 . 100 . . . . . . . . . . 200 100 . 1100 . 250 . 150 50 866 544 . 1883 Parts Sabotaged 2 | . . . . . . . . . . . . . . . . . . . . . . . . . . . . . . . . . . 2 Parts Stolen . | . . . . . . . . . . . . . . . . . . . . . . . . . . . . . . . . . . . Parts Stripped . | . . . . . . . . . . . . . . . . . . . . . . . . . . . . . . . . . . . Power Chain Reactions 5 | . . . . . . . . . . . . . . . . . . . . . . 1 1 . . . . . 1 . 1 1 . . Alert | -11 -10 -10 -9 -9 -8 -8 -8 -8 -6 -6 -6 -6 -6 -6 -5 -5 -5 -5 -5 -5 -5 -4 -4 -4 -4 -4 -4 -4 -3 -3 -3 -2 -2 -2 ------- Run | Yrd Mat Min Mat Min Mat Sto Rec Scr Fac Was Fac Low Low Dat Pro Fac Was Fac Upp Upp War Pro Fac Was Fac Upp Upp Zhi Pro Res Qua Res Tes Frg Maximum Alert Level 5 | . . . . . 3 2 . . 1 . 2 . . . . . . . . . . . 1 . 2 . . . . . . 2 1 5 Low Security (%) 59 | 100 100 100 100 100 50 12 100 . 87 100 31 . . . . 100 100 100 . . . . 98 100 33 . . . . 100 100 32 13 16 Level 1 18 | . . . . . 9 77 . . 12 . 53 . . . . . . . . . . . 1 . 11 . . . . . . 28 86 9 Level 2 11 | . . . . . 34 9 . . . . 15 . . . . . . . . . . . . . 55 . . . . . . 39 . 3 Level 3 2 | . . . . . 6 . . . . . . . . . . . . . . . . . . . . . . . . . . . . 11 Level 4 2 | . . . . . . . . . . . . . . . . . . . . . . . . . . . . . . . . . . 18 Level 5 5 | . . . . . . . . . . . . . . . . . . . . . . . . . . . . . . . . . . 39 High Security . | . . . . . . . . . . . . . . . . . . . . . . . . . . . . . . . . . . . Max Security . | . . . . . . . . . . . . . . . . . . . . . . . . . . . . . . . . . . . Peak Influence 3211 | 5 85 85 198 149 802 441 166 . 253 100 439 . . . . 6 . 150 . . . . 254 102 503 . . . . 44 159 664 391 3211 Initial 373 | . . . 6 69 4 333 132 . . 85 63 . . . . . . . . . . . . 88 . . . . . 42 2 10 373 100 Average 310 | . 21 20 59 52 321 293 21 . 87 92 232 . . . . . . 60 . . . . 15 47 292 . . . . 23 44 317 290 1236 Influence Increases 15796 | 10 97 205 744 288 1416 1060 227 . 1207 15 893 100 192 . 5 15 . 413 . . 435 211 517 78 1293 . 65 10 205 62 454 1124 202 4253 Destroy 0b10 Robot/C 7560 | . 60 120 520 160 920 540 100 . 420 . 100 100 140 . . . . . . . 320 180 140 . 580 . 60 . 180 . 160 460 20 2280 Destroy 0b10 Robot/NC 675 | 10 . 10 45 5 55 70 15 . 40 . 50 . 5 . 5 . . 15 . . 15 5 . . 70 . 5 10 15 5 30 25 20 150 Destroy Leader 1364 | . 10 30 138 30 212 134 . . 124 . 48 . 10 . . . . . . . . 20 20 . 116 . . . 10 . 26 92 4 340 Allied During Kill 467 | . . . . . . 90 39 . 111 . . . 7 . . . . . . . 25 6 4 . 16 . . . . . . . . 169 Trap Triggered on 0b10 40 | . . . . . . . . . 10 . . . . . . . . 30 . . . . . . . . . . . . . . . . Successful Hack 563 | . 12 . 39 . 20 18 12 . 66 . 123 . . . . 3 . 20 . . . . 39 . 76 . . . . 18 17 22 23 55 Select Force Hacks 140 | . . . . . . . 60 . . . 30 . . . . . . . . . . . 50 . . . . . . . . . . . Disable Machine 1110 | . . . . . 30 120 . . 150 . 105 . . . . . . 30 . . . . 90 . 180 . . . . 15 90 30 90 180 Anti-Garrison Action 350 | . . . . . . . . . . . 200 . . . . . . . . . . . . . . . . . . . . . . 150 Destroy Structure 2222 | . . . 2 63 74 28 1 . 61 . 102 . . . . 12 . 138 . . . . 144 78 180 . . . . 24 116 360 45 794 Partial Spotted 225 | . . . . . . 15 . . 45 15 15 . . . . . . 15 . . . . 15 . 15 . . . . . 15 45 . 30 Lose Combat Pursuer 1080 | . 15 45 . 30 105 45 . . 180 . 120 . 30 . . . . 165 . . 75 . 15 . 60 . . . . . . 90 . 105 Influence Decreases 12636 | 10 97 187 584 454 638 1509 568 . 964 168 633 300 342 . 5 15 . 295 105 13 213 433 263 332 799 244 158 167 142 121 439 479 687 1272 Entered New Map 2367 | . . . 12 109 8 457 209 . . 158 27 130 29 . . . . . 45 4 . 222 . 166 . 184 48 157 . 21 2 9 291 79 Time Decay 7312 | 10 97 187 461 335 600 682 359 . 423 10 416 170 273 . 5 15 . 220 60 9 172 201 169 106 497 60 110 10 142 100 277 230 206 700 Lost Part 644 | . . . 2 10 30 30 . . . . 30 . . . . . . 10 . . 10 10 2 . 100 . . . . . 10 90 40 270 Lost Ally 610 | . . . . . . 40 . . 186 . 10 . 40 . . . . . . . 31 . 57 60 76 . . . . . . . . 110 Purge Threat 1703 | . . . 109 . . 300 . . 355 . 150 . . . . . . 65 . . . . 35 . 126 . . . . . 150 150 150 113 Squads Dispatched 120 | . . . 4 . 10 4 . . 17 . 21 . . . . 6 . 10 . . . . 8 . 15 . . . . 2 2 5 4 12 Investigation 64 | . . . 3 . 2 1 . . 11 . 15 . . . . 5 . 8 . . . . 7 . 6 . . . . . . . . 6 Extermination 19 | . . . . . . . . . 4 . 4 . . . . . . 1 . . . . 1 . 3 . . . . 1 1 1 2 1 Reinforcement 25 | . . . 1 . 3 1 . . 1 . 2 . . . . 1 . 1 . . . . . . 6 . . . . 1 1 1 1 5 Assault 5 | . . . . . 2 2 . . . . . . . . . . . . . . . . . . . . . . . . . . 1 . Garrison 7 | . . . . . 3 . . . 1 . . . . . . . . . . . . . . . . . . . . . . 3 . . Intercept . | . . . . . . . . . . . . . . . . . . . . . . . . . . . . . . . . . . . Searches Triggered . | . . . . . . . . . . . . . . . . . . . . . . . . . . . . . . . . . . . Unchained Authorized 2 | . . . . . . . . . . . . . . . . . . 1 . . . . . . . . . . . . . . 1 . Data Miner Redirects 3 | . . . . . . . . . . . . . . . . . . . . . . . . . 3 . . . . . . . . . Construction Impeded 1 | . . . . . . . . . . . . . . . . . . . . . . . . . 1 . . . . . . . . . Haulers Reinforced 3 | . . . . . . . . . . . 1 . . . . . . . . . . . . . 1 . . . . . . 1 . . Active Scanning Responses . | . . . . . . . . . . . . . . . . . . . . . . . . . . . . . . . . . . . Cargo Convoy Interrupts . | . . . . . . . . . . . . . . . . . . . . . . . . . . . . . . . . . . . Stealth | -11 -10 -10 -9 -9 -8 -8 -8 -8 -6 -6 -6 -6 -6 -6 -5 -5 -5 -5 -5 -5 -5 -4 -4 -4 -4 -4 -4 -4 -3 -3 -3 -2 -2 -2 --------- Run | Yrd Mat Min Mat Min Mat Sto Rec Scr Fac Was Fac Low Low Dat Pro Fac Was Fac Upp Upp War Pro Fac Was Fac Upp Upp Zhi Pro Res Qua Res Tes Frg Distress Signals 26 | . . . 1 . 1 2 . . 2 . 3 . . . . . . 1 . . . . 2 . 3 . . . . . . . . 11 Communications Jammed 55 | . . . . . . . . . . . . . . . . . . . . . . . 19 . 3 . . . 1 . 8 21 . 3 Distress Signals 42 | . . . . . . . . . . . . . . . . . . . . . . . 9 . 3 . . . . . 7 20 . 3 Times Spotted 713 | . 5 9 35 23 75 48 3 . 33 6 25 3 9 . . 6 4 27 2 1 42 15 22 5 42 . 1 . 11 1 25 37 11 187 Peak Tracking Total 16 | . 3 3 4 4 5 10 1 . 11 5 5 3 6 . . 5 4 10 3 1 13 6 8 3 12 . 1 . 7 1 4 6 4 16 Tactical Retreats 68 | . 1 2 . 1 5 3 . . 7 . 7 . 2 . . 1 . 7 . . 3 5 5 . 4 . . . 2 . 3 4 . 6 ECM-based Alert Blocks 39 | . . . . . . . . . 7 . 6 . . . . 1 . 3 . . . . 8 . 2 . . . 2 . 10 . . . Traps | -11 -10 -10 -9 -9 -8 -8 -8 -8 -6 -6 -6 -6 -6 -6 -5 -5 -5 -5 -5 -5 -5 -4 -4 -4 -4 -4 -4 -4 -3 -3 -3 -2 -2 -2 ------- Run | Yrd Mat Min Mat Min Mat Sto Rec Scr Fac Was Fac Low Low Dat Pro Fac Was Fac Upp Upp War Pro Fac Was Fac Upp Upp Zhi Pro Res Qua Res Tes Frg Traps Triggered 29 | . 3 . 1 . 2 . . . 6 . 2 . . . . 1 . 1 . . . . 1 . . . . . . 1 1 1 3 6 Indirectly . | . . . . . . . . . . . . . . . . . . . . . . . . . . . . . . . . . . . Trap Hack Attempts 5 | . . . . . . . . . 5 . . . . . . . . . . . . . . . . . . . . . . . . . Triggered . | . . . . . . . . . . . . . . . . . . . . . . . . . . . . . . . . . . . Disarmed . | . . . . . . . . . . . . . . . . . . . . . . . . . . . . . . . . . . . Reprogrammed 2 | . . . . . . . . . 2 . . . . . . . . . . . . . . . . . . . . . . . . . Reused 5 | . . . . . . . . . 1 . . . . . . . . 3 . . . . . 1 . . . . . . . . . . Traps Extracted 5 | . . . . . . . . . . . . . . . . . . . . . 5 . . . . . . . . . . . . . Installed 4 | . . . . . . . . . . . . . . . . . . 3 . . . . . 1 . . . . . . . . . . Triggered 4 | . . . . . . . . . 1 . . . . . . . . 3 . . . . . . . . . . . . . . . . Most Traps Carried 5 | . . . . . . . . . . . . . . . 3 3 3 3 . . 5 5 5 5 . . . . . . . . . . Objects Rigged 7 | . . . . . . . . . 7 . . . . . . . . . . . . . . . . . . . . . . . . . Exploded 3 | . . . . . . . . . 3 . . . . . . . . . . . . . . . . . . . . . . . . . Machines | -11 -10 -10 -9 -9 -8 -8 -8 -8 -6 -6 -6 -6 -6 -6 -5 -5 -5 -5 -5 -5 -5 -4 -4 -4 -4 -4 -4 -4 -3 -3 -3 -2 -2 -2 ---------- Run | Yrd Mat Min Mat Min Mat Sto Rec Scr Fac Was Fac Low Low Dat Pro Fac Was Fac Upp Upp War Pro Fac Was Fac Upp Upp Zhi Pro Res Qua Res Tes Frg Machines Disabled 80 | . . . . . 2 8 . . 10 . 7 . 1 . . . . 2 . . 1 . 6 . 12 . . . . 1 6 2 6 16 Max in Single Turn 4 | . . . . . 1 1 . . 3 . 4 . 1 . . . . 2 . . . . 4 . 4 . . . . 1 1 1 1 2 Garrison Access 12 | . . . . . . . . . . . 1 . . . . 1 . 1 . . . . 2 . 4 . . . . . 1 . 1 1 Machines Repaired . | . . . . . . . . . . . . . . . . . . . . . . . . . . . . . . . . . . . Machines Dismantled 1 | . . . . . . 1 . . . . . . . . . . . . . . . . . . . . . . . . . . . . Machines Sabotaged . | . . . . . . . . . . . . . . . . . . . . . . . . . . . . . . . . . . . Overloaded Fab Kills 2 | . . . . . . . . . . . . . . . . . . . . . . . 2 . . . . . . . . . . . Hacking | -11 -10 -10 -9 -9 -8 -8 -8 -8 -6 -6 -6 -6 -6 -6 -5 -5 -5 -5 -5 -5 -5 -4 -4 -4 -4 -4 -4 -4 -3 -3 -3 -2 -2 -2 --------- Run | Yrd Mat Min Mat Min Mat Sto Rec Scr Fac Was Fac Low Low Dat Pro Fac Was Fac Upp Upp War Pro Fac Was Fac Upp Upp Zhi Pro Res Qua Res Tes Frg Machines Accessed 219 | . 3 . 9 . 11 12 8 2 21 . 29 2 3 3 1 10 . 15 . . . . 16 . 26 . . 4 . 2 11 5 9 17 Terminals 106 | . 3 . 6 . 8 11 6 . 8 . 11 1 . . 1 2 . 7 . . . . 4 . 10 . . . . 1 8 4 6 9 Fabricators 17 | . . . . . . . . . 4 . 4 . . . . . . 1 . . . . 4 . 3 . . . . . . . 1 . Repair Stations 14 | . . . . . 1 1 . . . . 2 . . . . 2 . . . . . . 2 . 4 . . . . . 1 . . 1 Recycling Units 37 | . . . 1 . . . 2 . 6 . 8 . . . . 5 . 5 . . . . 4 . 3 . . . . . . . . 3 Scanalyzers 16 | . . . 2 . 1 . . . 2 . 2 . . . . . . . . . . . . . 2 . . . . 1 1 1 1 3 Garrison Access 16 | . . . . . 1 . . . 1 . 2 . . . . 1 . 2 . . . . 2 . 4 . . . . . 1 . 1 1 Total Hacks 676 | . 7 . 32 . 44 33 21 7 65 . 85 7 8 22 1 34 . 42 . . . . 61 . 85 . . 17 . 6 29 16 21 33 Successful 420 | . 4 . 14 . 25 14 12 7 38 . 49 7 8 22 1 23 . 16 . . . . 45 . 66 . . 17 . 3 19 12 8 10 Failed 252 | . 3 . 17 . 19 19 9 . 27 . 36 . . . . 11 . 26 . . . . 16 . 18 . . . . 2 10 4 12 23 Catastrophic 40 | . 3 . 2 . 3 4 . . 5 . 4 . . . . 1 . 4 . . . . 3 . 1 . . . . . 2 . 2 6 Database Lockouts 4 | . . . 1 . . . . . . . . . . . . . . . . . . . . . 1 . . . . 1 . . 1 . Manual 286 | . 4 . 18 . 21 15 17 . 28 . 38 . . . . 17 . 20 . . 1 . 30 . 31 . . . . 2 14 4 2 24 Terminals 331 | . 7 . 23 . 24 30 16 . 26 . 38 1 . . 1 16 . 23 . . . . 22 . 35 . . . . 2 22 11 14 20 Fabricators 60 | . . . . . . . . . 17 . 11 . . . . . . 4 . . . . 9 . 17 . . . . . . . 2 . Repair Stations 54 | . . . . . 7 3 . . . . 5 . . . . 6 . . . . . . 12 . 18 . . . . . 2 . . 1 Recycling Units 75 | . . . 3 . . . 5 . 10 . 15 . . . . 9 . 10 . . . . 13 . 5 . . . . . . . . 5 Scanalyzers 62 | . . . 6 . 11 . . . 9 . 10 . . . . . . . . . . . . . 5 . . . . 4 4 5 3 5 Garrison Access 34 | . . . . . 2 . . . 3 . 6 . . . . 3 . 5 . . . . 5 . 5 . . . . . 1 . 2 2 Terminal Hacks 156 | . 4 . 10 . 3 11 4 7 7 . 11 7 8 22 1 4 . 6 . . . . 8 . 10 . . 17 . . 3 4 5 4 Record 25 | . . . . . . . . . . . . 7 6 6 1 . . . . . . . . . . . . 5 . . . . . . Part Schematic 17 | . . . . . . 1 . . 1 . . . . 9 . . . 1 . . . . . . 1 . . 4 . . . . . . Robot Schematic 5 | . . . . . . . . . . . 1 . . 4 . . . . . . . . . . . . . . . . . . . . Robot Analysis 20 | . 3 . 2 . . 1 1 6 . . 1 . . . . . . 1 . . . . . . . . . 4 . . . 1 . . Prototype ID Bank 14 | . 1 . 2 . . . 3 . . . . . . 3 . . . . . . . . 1 . . . . 4 . . . . . . Open Door 6 | . . . . . . 4 . . . . . . 2 . . . . . . . . . . . . . . . . . . . . . Level Access Points 1 | . . . . . . . . . . . . . . . . . . . . . . . . . 1 . . . . . . . . . Branch Access Points 7 | . . . 1 . 1 . . . . . 1 . . . . . . 1 . . . . 1 . 1 . . . . . . 1 . . Machine Index 1 | . . . . . . . . . . . . . . . . . . . . . . . . . 1 . . . . . . . . . Terminal Index 3 | . . . . . . . . . . . . . . . . 1 . . . . . . 1 . . . . . . . 1 . . . Recycling Unit Index 2 | . . . . . . . . . . . 1 . . . . . . . . . . . 1 . . . . . . . . . . . Alert Level 1 | . . . . . . . . . . . 1 . . . . . . . . . . . . . . . . . . . . . . . Unreport Threat 15 | . . . 1 . . 2 . . 3 . 1 . . . . . . 1 . . . . 2 . 1 . . . . . 1 1 1 1 Locate Traps 7 | . . . 1 . . 1 . . 1 . 1 . . . . 1 . . . . . . . . . . . . . . . . 1 1 Transport Status 1 | . . . 1 . . . . . . . . . . . . . . . . . . . . . . . . . . . . . . . Extermination Status 1 | . . . . . . . . . . . 1 . . . . . . . . . . . . . . . . . . . . . . . Recall Investigation 2 | . . . . . . . . . . . 1 . . . . . . 1 . . . . . . . . . . . . . . . . Recall Extermination 5 | . . . . . . . . . 1 . 1 . . . . . . . . . . . 1 . 1 . . . . . 1 . . . Hauler Manifests 3 | . . . 1 . . 1 . . . . . . . . . . . . . . . . . . 1 . . . . . . . . . Registered Components 6 | . . . . . 1 . . . 1 . 1 . . . . 1 . . . . . . 1 . . . . . . . . 1 . . Registered Prototypes 1 | . . . . . . . . . . . . . . . . . . . . . . . . . 1 . . . . . . . . . Zone Layout 9 | . . . 1 . 1 1 . . . . . . . . . 1 . 1 . . . . . . 2 . . . . . . . 1 1 Proto ID Catalog 2 | . . . . . . . . 1 . . . . . . . . . . . . . . . . . . . . . . . . . 1 Protovariant Controls 2 | . . . . . . . . . . . . . . . . . . . . . . . . . . . . . . . . . 2 . Fabricator Hacks 27 | . . . . . . . . . 8 . 5 . . . . . . 2 . . . . 2 . 10 . . . . . . . . . Network Status 4 | . . . . . . . . . 1 . 1 . . . . . . . . . . . 1 . 1 . . . . . . . . . Load Schematic 12 | . . . . . . . . . 4 . 2 . . . . . . 1 . . . . . . 5 . . . . . . . . . Build 11 | . . . . . . . . . 3 . 2 . . . . . . 1 . . . . 1 . 4 . . . . . . . . . Repair Station Hacks 42 | . . . . . 6 1 . . . . 5 . . . . 5 . . . . . . 10 . 15 . . . . . . . . . Scan Component 23 | . . . . . 3 1 . . . . 3 . . . . 3 . . . . . . 5 . 8 . . . . . . . . . Repair 19 | . . . . . 3 . . . . . 2 . . . . 2 . . . . . . 5 . 7 . . . . . . . . . Recycling Unit Hacks 15 | . . . . . . . 1 . 3 . 3 . . . . 2 . . . . . . 4 . 2 . . . . . . . . . Retrieve Components 15 | . . . . . . . 1 . 3 . 3 . . . . 2 . . . . . . 4 . 2 . . . . . . . . . Scanalyzer 44 | . . . 1 . 10 . . . 9 . 7 . . . . . . . . . . . . . 4 . . . . 2 4 5 1 1 Insert Component 15 | . . . 1 . 4 . . . 2 . 2 . . . . . . . . . . . . . 1 . . . . 1 . 4 . . Analyze 14 | . . . . . 6 . . . 4 . 2 . . . . . . . . . . . . . 2 . . . . . . . . . Retrieve Study 15 | . . . . . . . . . 3 . 3 . . . . . . . . . . . . . 1 . . . . 1 4 1 1 1 Garrison Access Hacks 11 | . . . . . 1 . . . . . . . . . . 1 . 1 . . . . 2 . 4 . . . . . 1 . 1 . Unlock Access 1 | . . . . . 1 . . . . . . . . . . . . . . . . . . . . . . . . . . . . . Seal Access 10 | . . . . . . . . . . . . . . . . 1 . 1 . . . . 2 . 4 . . . . . 1 . 1 . Unauthorized Hacks 125 | . . . 3 . 5 2 7 . 11 . 18 . . . . 11 . 7 . . . . 19 . 21 . . . . 1 11 3 1 5 Terminals 62 | . . . 2 . 4 1 5 . 3 . 4 . . . . 6 . 2 . . . . 6 . 12 . . . . 1 11 3 . 2 Track 6 | . . . . . . . . . . . 1 . . . . 1 . . . . . . 1 . 1 . . . . . 1 . . 1 Assimilate 16 | . . . . . 2 . . . 1 . 2 . . . . . . 2 . . . . 3 . 3 . . . . . 2 . . 1 Botnet 14 | . . . 1 . 1 1 . . 1 . 1 . . . . 2 . . . . . . 1 . 2 . . . . 1 2 1 . . Detonate 1 | . . . . . . . . . 1 . . . . . . . . . . . . . . . . . . . . . . . . . Disrupt 1 | . . . . . . . . . . . . . . . . 1 . . . . . . . . . . . . . . . . . . Operators 5 | . . . 1 . 1 . . . . . . . . . . 1 . . . . . . 1 . . . . . . . 1 . . . Skim 19 | . . . . . . . 5 . . . . . . . . 1 . . . . . . . . 6 . . . . . 5 2 . . Fabricators 19 | . . . . . . . . . 2 . 4 . . . . . . . . . . . 7 . 6 . . . . . . . . . Prioritize 5 | . . . . . . . . . . . 1 . . . . . . . . . . . 1 . 3 . . . . . . . . . Liberate 6 | . . . . . . . . . 1 . 1 . . . . . . . . . . . 3 . 1 . . . . . . . . . Haulers 5 | . . . . . . . . . 1 . 2 . . . . . . . . . . . 1 . 1 . . . . . . . . . Overload 1 | . . . . . . . . . . . . . . . . . . . . . . . 1 . . . . . . . . . . . Recompile 2 | . . . . . . . . . . . . . . . . . . . . . . . 1 . 1 . . . . . . . . . Repair Stations 2 | . . . . . . 1 . . . . . . . . . . . . . . . . . . . . . . . . . . . 1 Patch 2 | . . . . . . 1 . . . . . . . . . . . . . . . . . . . . . . . . . . . 1 Recycling Units 38 | . . . 1 . . . 2 . 6 . 8 . . . . 5 . 5 . . . . 6 . 3 . . . . . . . . 2 Reject 1 | . . . 1 . . . . . . . . . . . . . . . . . . . . . . . . . . . . . . . Recyclers 1 | . . . . . . . . . . . . . . . . . . . . . . . 1 . . . . . . . . . . . Mask 1 | . . . . . . . . . . . . . . . . . . . . . . . 1 . . . . . . . . . . . Tunnel 2 | . . . . . . . 2 . . . . . . . . . . . . . . . . . . . . . . . . . . . Fedlink 32 | . . . . . . . . . 6 . 8 . . . . 5 . 5 . . . . 4 . 3 . . . . . . . . 1 Scrapoids 1 | . . . . . . . . . . . . . . . . . . . . . . . . . . . . . . . . . . 1 Scanalyzers 2 | . . . . . . . . . . . 1 . . . . . . . . . . . . . . . . . . . . . 1 . Researchers 1 | . . . . . . . . . . . . . . . . . . . . . . . . . . . . . . . . . 1 . Extract 1 | . . . . . . . . . . . 1 . . . . . . . . . . . . . . . . . . . . . . . Garrison Access 2 | . . . . . 1 . . . . . 1 . . . . . . . . . . . . . . . . . . . . . . . Decoy 1 | . . . . . 1 . . . . . . . . . . . . . . . . . . . . . . . . . . . . . Jam 1 | . . . . . . . . . . . 1 . . . . . . . . . . . . . . . . . . . . . . . Data Cores Recovered . | . . . . . . . . . . . . . . . . . . . . . . . . . . . . . . . . . . . Used . | . . . . . . . . . . . . . . . . . . . . . . . . . . . . . . . . . . . Hacking Detections 160 | . 3 . 9 . 10 10 7 . 13 . 23 1 . . . 4 . 13 . . . . 8 . 19 . . . . 2 9 5 9 15 Full Trace Events 20 | . . . 2 . 1 . . . 5 . 5 . . . . . . 3 . . . . 1 . 2 . . . . . . . . 1 Feedback Events 1 | . . . 1 . . . . . . . . . . . . . . . . . . . . . . . . . . . . . . . Corruption 1 | . . . 1 . . . . . . . . . . . . . . . . . . . . . . . . . . . . . . . Feedback Blocked . | . . . . . . . . . . . . . . . . . . . . . . . . . . . . . . . . . . . Robot Schematics Acquired 5 | . . . . . . . . . . . 1 . . 4 . . . . . . . . . . . . . . . . . . . . Robots Built 1 | . . . . . . . . . . . . . . . . . . . . . . . 1 . . . . . . . . . . . Authchips . | . . . . . . . . . . . . . . . . . . . . . . . . . . . . . . . . . . . Time 84 | . . . . . . . . . . . . . . . . . . . . . . . 84 . . . . . . . . . . . Total Robot Build Rating 6 | . . . . . . . . . . . . . . . . . . . . . . . 6 . . . . . . . . . . . Part Schematics Acquired 32 | . . . . . 4 1 . . 3 . 6 . . 9 . . . 1 . . . . . . 2 . . 4 . . . . . 2 Parts Built 13 | . . . . . . . . . 2 . 3 . . . . . . 2 . . . . . . 6 . . . . . . . . . Authchips 2 | . . . . . . . . . . . . . . . . . . . . . . . . . 2 . . . . . . . . . Time 600 | . . . . . . . . . 280 . 86 . . . . . . 47 . . . . . . 187 . . . . . . . . . Total Part Build Rating 85 | . . . . . . . . . 13 . 14 . . . . . . 10 . . . . . . 48 . . . . . . . . . Part Studies Acquired 15 | . . . . . . . . . 3 . 3 . . . . . . . . . . . . . 1 . . . . 1 4 1 1 1 Parts Repaired 19 | . . . . . 3 . . . . . 2 . . . . 2 . . . . . . 5 . 7 . . . . . . . . . Time 848 | . . . . . 108 . . . . . 46 . . . . 70 . . . . . . 149 . 475 . . . . . . . . . Parts Recycled . | . . . . . . . . . . . . . . . . . . . . . . . . . . . . . . . . . . . Recycled Matter . | . . . . . . . . . . . . . . . . . . . . . . . . . . . . . . . . . . . Retrieved Matter . | . . . . . . . . . . . . . . . . . . . . . . . . . . . . . . . . . . . Retrieved Components 24 | . . . . . . . 1 . 11 . 3 . . . . . . . . . . . 4 . 5 . . . . . . . . . Parts Scanalyzed 9 | . . . 1 . 3 . . . 2 . 2 . . . . . . . . . . . . . 1 . . . . . . . . . Part Schematics Acquired 9 | . . . . . 4 . . . 2 . 2 . . . . . . . . . . . . . 1 . . . . . . . . . Parts Damaged 2 | . . . . . 2 . . . . . . . . . . . . . . . . . . . . . . . . . . . . . Bothacking | -11 -10 -10 -9 -9 -8 -8 -8 -8 -6 -6 -6 -6 -6 -6 -5 -5 -5 -5 -5 -5 -5 -4 -4 -4 -4 -4 -4 -4 -3 -3 -3 -2 -2 -2 ------------ Run | Yrd Mat Min Mat Min Mat Sto Rec Scr Fac Was Fac Low Low Dat Pro Fac Was Fac Upp Upp War Pro Fac Was Fac Upp Upp Zhi Pro Res Qua Res Tes Frg Used RIF Installer . | . . . . . . . . . . . . . . . . . . . . . . . . . . . . . . . . . . . Robots Hacked 7 | . . . . . . . . 1 2 . . . . . . 1 . . . . . . . . . . . 3 . . . . . . Non-combat 3 | . . . . . . . . . 2 . . . . . . 1 . . . . . . . . . . . . . . . . . . Combat 4 | . . . . . . . . 1 . . . . . . . . . . . . . . . . . . . 3 . . . . . . Robot Hacks Applied 7 | . . . . . . . . 1 2 . . . . . . 1 . . . . . . . . . . . 3 . . . . . . parse_system 4 | . . . . . . . . 1 . . . . . . . . . . . . . . . . . . . 3 . . . . . . find_chute 2 | . . . . . . . . . 1 . . . . . . 1 . . . . . . . . . . . . . . . . . . find_recycling 1 | . . . . . . . . . 1 . . . . . . . . . . . . . . . . . . . . . . . . . Relay Couplers Released 7 | . . . . . . . . . . . . . . . . . . 2 . . . . . . 4 . . . . . . . . 1 Machine Destruction 7 | . . . . . . . . . . . . . . . . . . 2 . . . . . . 4 . . . . . . . . 1 Fabnet Peak Effective % . | . . . . . . . . . . . . . . . . . . . . . . . . . . . . . . . . . . . Robots Rewired 11 | . . . . . . . 4 . . . . . . . . . . . . . 5 2 . . . . . . . . . . . . Allies Hacked 1 | . . . . . . . . . . . . . 1 . . . . . . . . . . . . . . . . . . . . . Hacks Repelled . | . . . . . . . . . . . . . . . . . . . . . . . . . . . . . . . . . . . Allies | -11 -10 -10 -9 -9 -8 -8 -8 -8 -6 -6 -6 -6 -6 -6 -5 -5 -5 -5 -5 -5 -5 -4 -4 -4 -4 -4 -4 -4 -3 -3 -3 -2 -2 -2 -------- Run | Yrd Mat Min Mat Min Mat Sto Rec Scr Fac Was Fac Low Low Dat Pro Fac Was Fac Upp Upp War Pro Fac Was Fac Upp Upp Zhi Pro Res Qua Res Tes Frg Total Allies 68 | . . . . . 1 12 4 1 6 . 1 . 3 . . . . 1 . . 5 2 4 19 2 . . . . . 1 . . 6 Largest Group 19 | . . . . . 1 11 15 15 10 . 1 . 3 . . . . 1 . . 5 4 5 19 8 . . . . . 1 . . 5 Highest-Rated Group 684 | . . . . . 10 183 246 246 253 . 26 . 75 . . . . 26 . . 281 190 200 684 314 . . . . . 10 . . 323 Highest-Rated Ally 82 | . . . . . 10 31 29 82 82 . 26 . 25 . . . . 26 . . 64 64 57 50 46 . . . . . 10 . . 67 Total Orders 93 | . . . . . 3 13 13 16 9 . . . . . . . . . . . 10 5 20 . . . . . . . 2 . . 2 STAY 50 | . . . . . 2 11 8 5 1 . . . . . . . . . . . 7 2 12 . . . . . . . 1 . . 1 ROAM 1 | . . . . . . . . . 1 . . . . . . . . . . . . . . . . . . . . . . . . . FOLLOW 37 | . . . . . 1 2 5 11 2 . . . . . . . . . . . 3 3 8 . . . . . . . 1 . . 1 AID 5 | . . . . . . . . . 5 . . . . . . . . . . . . . . . . . . . . . . . . . Ally Attacks 401 | . . . . . . 32 8 . 110 . . . 8 . . . . . . . 12 . 14 87 57 . . . . . . . . 73 Total Damage 11930 | . . . . . . 346 133 . 2560 . . . 214 . . . . . . . 408 . 786 4557 1405 . . . . . . . . 1521 Kills 58 | . . . . . . 5 2 . 16 . . . 2 . . . . . . . 3 . 1 12 11 . . . . . . . . 6 Allies Corrupted 3 | . . . . . . . . 2 . . . . . . . . . . . . . . 1 . . . . . . . . . . . Allies Melted 7 | . . . . . . . . . . . . . . . . . . . . . 1 . . . . . . . . . . . . 6 Intel | -11 -10 -10 -9 -9 -8 -8 -8 -8 -6 -6 -6 -6 -6 -6 -5 -5 -5 -5 -5 -5 -5 -4 -4 -4 -4 -4 -4 -4 -3 -3 -3 -2 -2 -2 ------- Run | Yrd Mat Min Mat Min Mat Sto Rec Scr Fac Was Fac Low Low Dat Pro Fac Was Fac Upp Upp War Pro Fac Was Fac Upp Upp Zhi Pro Res Qua Res Tes Frg Active Infowar (turns) 17076 | . . . . . 1913 33 . . 1173 35 1013 344 644 22 278 328 19 520 124 254 637 829 793 233 1980 133 227 133 474 219 798 495 433 2992 Optics 3421 | . . . . . . . . . . . . . . . . . . . . . . . . . 2 . . . . . . . 427 2992 Sensors 8565 | . . . . . 40 33 . . 1056 35 788 247 616 . 268 272 19 372 54 179 203 758 353 96 1501 132 219 133 337 219 312 . . 323 Seismic 306 | . . . . . 306 . . . . . . . . . . . . . . . . . . . . . . . . . . . . . Machine Analysis 14321 | . . . . . 1750 . . . 1173 35 1013 344 644 22 278 328 19 520 124 254 637 829 793 233 1980 133 227 133 474 219 798 495 433 433 Cloaking 310 | . . . . . . . . . . . . . . . . . . . . . 1 . . . . . . . . . 2 1 2 304 Jamming 3082 | . . . . . . . . . . . . . . . . . . . . . . . 84 82 583 . . . 138 218 798 464 402 313 ECM 2633 | . . . . . . . . . 267 . 55 . . . . 56 . 23 . . . 26 297 . 170 133 227 33 249 219 798 80 . . Robot Analysis Total 20 | . 3 . 2 . . 1 1 6 . . 1 . . . . . . 1 . . . . . . . . . 4 . . . 1 . . Derelict Logs Recovered 15 | . . 2 . 1 . . . . . . . 2 3 . 2 . . . . 2 . 2 . . . 1 . . . . . . . . Drone Launches . | . . . . . . . . . . . . . . . . . . . . . . . . . . . . . . . . . . . Drone Recoveries . | . . . . . . . . . . . . . . . . . . . . . . . . . . . . . . . . . . . Exploration | -11 -10 -10 -9 -9 -8 -8 -8 -8 -6 -6 -6 -6 -6 -6 -5 -5 -5 -5 -5 -5 -5 -4 -4 -4 -4 -4 -4 -4 -3 -3 -3 -2 -2 -2 ------------- Run | Yrd Mat Min Mat Min Mat Sto Rec Scr Fac Was Fac Low Low Dat Pro Fac Was Fac Upp Upp War Pro Fac Was Fac Upp Upp Zhi Pro Res Qua Res Tes Frg Turns Passed 29645 | 130 362 775 1476 947 2244 2701 1904 3876 1273 35 1013 344 644 22 278 328 19 520 124 254 637 829 793 233 1980 133 227 133 474 219 798 495 433 2992 Spaces Moved 29080 | 66 210 440 543 363 971 1124 948 2223 1893 112 1840 848 1285 82 793 614 78 1253 267 796 884 1010 1454 420 2440 277 330 188 666 314 961 497 577 2313 Core 9 | 2 . . . . . . . . . . . . . . . . . . . . . . . . 1 . . . . . . . . 6 Treads 5412 | 64 210 440 . . 358 1124 948 2223 45 . . . . . . . . . . . . . . . . . . . . . . . . . Legs 147 | . . . . . . . . . . . . . . . . . . . . . . . . . . . . . . . . . . 147 Wheels 3059 | . . . 543 363 613 . . . . . . . . . . . . . . . . . . . . . . . . . . . . 1540 Hover 6041 | . . . . . . . . . . . . . . . . . . . . . . . . . 1611 277 330 188 666 314 961 497 577 620 Flight 14412 | . . . . . . . . . 1848 112 1840 848 1285 82 793 614 78 1253 267 796 884 1010 1454 420 828 . . . . . . . . . Fastest Speed 20 | 50 160 160 160 145 145 155 163 163 28 28 25 25 25 25 25 22 22 22 22 22 21 21 20 21 21 45 45 45 45 39 37 40 35 40 Average Speed 67 | 156 160 160 183 154 166 196 163 163 35 28 26 25 25 25 25 27 22 22 22 22 28 21 21 27 39 45 45 46 45 44 45 44 43 80 Slowest Speed 550 | 160 160 160 215 160 240 240 163 163 163 28 100 25 25 25 25 177 22 22 22 22 105 22 97 91 550 45 45 54 45 45 135 49 49 210 Overloaded Moves 103 | . . . . . . . . . . . . . . . . . . . . . . . . . . . . . . 3 31 19 50 . Propulsion Burnouts 1 | . . . . . . . . . . . . . . . . . . . . . . . . . . . . . . . . . 1 . Robots Hopped 23 | . . . . . . . . . 8 . 6 . . . . 1 . 4 . . . . 2 . 2 . . . . . . . . . Potential Cave-ins 19 | . . . . . . . . . . . . . . . . . . 2 . . . . . . 4 . . . . . 2 5 . 6 Cave-ins Triggered 1 | . . . . . . . . . . . . . . . . . . . . . . . . . . . . . . . . . 1 . Teleports 1 | . . . . . . . . . . . . . . . . . . . . . . . . . . . . . . . . . . 1 Exploration Rate (%) 62 | 5 41 88 54 71 81 93 98 81 38 73 55 93 94 69 87 18 72 39 42 79 82 77 30 90 42 43 59 60 83 9 83 19 73 68 Regions Visited 34 Branch Regions 20 Pre-discovered Areas 20 | . . 1 . 1 . 1 5 . 1 . . 1 . 1 1 . . . . 2 . 1 . . 1 . . 3 . . 1 . . . Known Exits Taken 23 | . . . 1 . 1 1 1 1 . . 1 1 1 1 1 . . 1 1 1 1 1 . . 1 1 1 1 1 1 1 1 . . Unknown Exits Taken 5 | 1 1 1 . 1 . . . . . . . . . . . . . . . . . . . . . . . . . . . . 1 . Scrap Searched 20 | . . 1 . 2 . . . 4 . . . 4 2 . 1 . . . . 2 . 2 . . . 1 . . 1 . . . . . Spaces Dug 693 | . . . . 65 13 14 . . 24 . 57 5 16 . 5 6 . 33 . 6 . 74 15 . 43 . 3 . 68 15 58 25 15 133 Terrain Destroyed 1577 | . . . . 100 69 22 . . 87 . 107 5 39 . 5 6 . 74 . 6 100 88 62 . 94 . 43 . 89 15 92 163 15 296 Melee 169 | . . . . 2 3 . . . 14 . 47 3 10 . 1 6 . 23 . 4 . 2 11 . 18 . . . . . . 2 15 8 Projectile 301 | . . . . . . . . . 11 . 10 2 . . 4 . . 10 . 2 . 26 4 . 31 . 3 . 10 15 25 25 . 123 AOE 1107 | . . . . 98 66 22 . . 62 . 50 . 29 . . . . 41 . . 100 60 47 . 45 . 40 . 79 . 67 136 . 165 Terrain Rammed . | . . . . . . . . . . . . . . . . . . . . . . . . . . . . . . . . . . . Walls Destroyed . | . . . . . . . . . . . . . . . . . . . . . . . . . . . . . . . . . . . Machines Disabled . | . . . . . . . . . . . . . . . . . . . . . . . . . . . . . . . . . . . Actions | -11 -10 -10 -9 -9 -8 -8 -8 -8 -6 -6 -6 -6 -6 -6 -5 -5 -5 -5 -5 -5 -5 -4 -4 -4 -4 -4 -4 -4 -3 -3 -3 -2 -2 -2 --------- Run | Yrd Mat Min Mat Min Mat Sto Rec Scr Fac Was Fac Low Low Dat Pro Fac Was Fac Upp Upp War Pro Fac Was Fac Upp Upp Zhi Pro Res Qua Res Tes Frg Total 36730 | 83 226 476 865 682 1394 1486 1295 2465 2419 114 2205 930 1540 82 852 759 79 1426 330 858 1214 1547 1894 527 3287 283 395 225 804 367 1222 676 696 3027 Wait 4665 | 2 5 3 168 264 182 195 313 134 413 . 181 31 193 . 37 130 . 95 62 39 203 434 365 83 581 4 50 . 94 20 132 52 55 145 Move 29003 | 65 209 439 542 362 970 1123 947 2222 1877 111 1827 847 1284 81 792 612 77 1244 266 795 883 1009 1450 419 2435 276 329 187 665 313 960 496 576 2313 Hop 23 | . . . . . . . . . 8 . 6 . . . . 1 . 4 . . . . 2 . 2 . . . . . . . . . Pick Up 241 | 6 4 2 31 2 19 9 . 34 7 1 11 . 1 . . 3 1 2 . 1 1 3 8 1 22 . . 5 1 3 7 9 10 37 Fast Attach 194 | 6 . 3 3 1 16 9 2 4 7 . 12 . . . 4 1 . 2 . 2 15 2 10 2 19 . 1 6 . 1 9 7 8 42 Attach 84 | . . . 4 1 6 2 . 2 5 . 3 . . . 1 2 . 2 1 3 . 1 6 . 10 . . 2 . 2 2 7 3 19 Detach 73 | . . . 3 . 3 2 . . 3 . 5 . . . 1 . . 1 . 4 2 . 4 2 4 . . 3 . 1 1 6 2 26 Swap 390 | . . 1 13 11 26 27 . 2 20 1 28 15 13 1 4 3 . 30 1 1 14 16 20 6 41 3 3 5 16 1 5 7 4 52 Drop 298 | . 2 5 19 3 28 21 2 39 19 1 14 . . . 1 . 1 4 . 1 16 4 7 3 16 . 1 9 1 2 12 5 7 55 Fire 1215 | 4 6 19 82 36 125 83 10 27 21 . 13 28 29 . 4 . . 11 . 3 50 66 5 7 86 . 11 4 27 24 94 81 . 259 Melee 379 | . . . . 2 19 4 . 1 34 . 90 9 20 . 8 7 . 28 . 9 . 5 17 3 71 . . 4 . . . 4 31 13 Ram 1 | . . . . . . . . . . . . . . . . . . . . . . . . . . . . . . . . . . 1 Kick . | . . . . . . . . . . . . . . . . . . . . . . . . . . . . . . . . . . . Crush 7 | . . 4 . . . 3 . . . . . . . . . . . . . . . . . . . . . . . . . . . . Escape Stasis 30 | . . . . . . . . . . . 15 . . . . . . . . . . . . . . . . . . . . 2 . 13 Rewire 59 | . . . . . . . 21 . . . . . . . . . . . . . 30 7 . . . . . . . . . . . 1 Trap 9 | . . . . . . . . . 5 . . . . . . . . 3 . . . . . 1 . . . . . . . . . . Miscellaneous 59 | . . . . . . 8 . . . . . . . . . . . . . . . . . . . . . . . . . . . 51 Route ------- -11/Scrapyard -10/Materials (discovered 2 exits: *Mat / [*Min]) -10/Mines (discovered 2 exits: *Mat x2) -9/Materials (discovered 4 exits: *Mat x2 / *Min x2) -9/Mines (discovered 2 exits: *Mat x2) -8/Materials (discovered 5 exits: *Fac x2 / *Sto x2 / Gar) -8/Storage (discovered 2 exits: *Fac / *Rec) -8/Recycling (discovered 2 exits: *Fac / *Scr) -8/Scraptown (discovered 2 exits: *Fac x2) -6/Factory (discovered 5 exits: *Fac x4 / *Low) -6/Waste -6/Factory (discovered 3 exits: *Fac / *Low x2) -6/Lower Caves (discovered 2 exits: *Low / *Dat) -6/Lower Caves (discovered 2 exits: *Fac / *Dat) -6/Data Miner -5/Proximity Caves -5/Factory (discovered 2 exits: Fac / Upp) -5/Waste -5/Factory (discovered 4 exits: *Upp x2 / Ext x2) -5/Upper Caves -5/Upper Caves (discovered 2 exits: *Fac / *War) -5/Warlord -4/Proximity Caves -4/Factory (discovered 2 exits: Upp x2) -4/Waste -4/Factory (discovered 6 exits: Res x4 / *Upp x2) -4/Upper Caves -4/Upper Caves (discovered 2 exits: *Res / *Zhi) -4/Zhirov -3/Proximity Caves -3/Research (discovered 4 exits: Res x2 / Arm / *Qua) -3/Quarantine -2/Research (discovered 3 exits: Acc / *Tes x2) -2/Testing (discovered 2 exits: [*Sec] / *Frg) -2/Protoforge (discovered 1 exit: *Acc) History --------- Turn | Location | Event 12 | -11/Scrapyard | Discovered new exit (range 15) 131 | -11/Scrapyard | Entered Materials 317 | -10/Materials | Build established: Mutant 345 | -10/Materials | Discovered new exit (range 9) 467 | -10/Materials | Discovered new exit (range 9) 493 | -10/Materials | Entered Mines 572 | -10/Mines | Discovered new exit (range 5) 617 | -10/Mines | Found a damaged Exp. Sensor Array with a note attached 621 | -10/Mines | Found Prototype Device 750 | -10/Mines | Learned location of Zion (-7) 844 | -10/Mines | Found a hidden stash of uninstalled traps 1010 | -10/Mines | Learned Materials emergency access door positions 1236 | -10/Mines | Discovered new exit (range 12) 1268 | -10/Mines | Entered Materials 1268 | -9/Materials | Evolved 2 slots: Propulsion x1, Utility x1 1327 | -9/Materials | Identified exit to Mines 1651 | -9/Materials | Discovered new exit (range 14) 1668 | -9/Materials | Central database locked down 1668 | -9/Materials | Identified Exp. Sensor Array 2243 | -9/Materials | Discovered new exit (range 16) 2653 | -9/Materials | Build established: Scavenger-Mutant 2744 | -9/Materials | Entered Mines 2759 | -9/Mines | Met a Derelict bent on vengeance 2767 | -9/Mines | Learned 2 Materials zone layouts 2815 | -9/Mines | Discovered new exit (range 13) 2823 | -9/Mines | Found DCF Scrap (14 items) 2991 | -9/Mines | Learned location of Storage (-8) 2992 | -9/Mines | Discovered new exit (range 15) 3161 | -9/Mines | Received a Rocket Launcher from a helpful Derelict 3169 | -9/Mines | Assembled infested the area 3501 | -9/Mines | Core integrity fell below 50% 3526 | -9/Mines | Destroyed 12 combat bots 3691 | -9/Mines | Entered Materials 3691 | -8/Materials | Evolved 2 slots: Utility x2 3692 | -8/Materials | Identified exit to Factory 4136 | -8/Materials | Discovered new exit (range 8) 4264 | -8/Materials | Identified exit to Storage 4938 | -8/Materials | Discovered exit to Factory (range 15) 5033 | -8/Materials | Garrison activated, responded to threat 5089 | -8/Materials | Identified exit to Garrison 5151 | -8/Materials | Repaired Broken Plasma Cutter 5186 | -8/Materials | Repaired Lgt. Treads 5232 | -8/Materials | Repaired Adv. Treads 5691 | -8/Materials | First assault squad dispatched 5856 | -8/Materials | Build established: Mutant 5935 | -8/Materials | Entered Storage 5935 | -8/Storage | Accompanied by 1 ally 6317 | -8/Storage | Learned location of Armory (-3) 6878 | -8/Storage | Met a pair of Derelict thieves 6990 | -8/Storage | Core integrity fell below 50% 7284 | -8/Storage | Used back door to open Recycling access 7284 | -8/Storage | Discovered new exit (range 5) 7906 | -8/Storage | Build established: Scavenger-Mutant 8161 | -8/Storage | Discovered exit to Factory (range 16) 8366 | -8/Storage | Assisted by bots powering up and referring to "LRC-V3" 8607 | -8/Storage | Identified exit to Recycling 8636 | -8/Storage | Entered Recycling 8636 | -8/Recycling | Accompanied by 11 allies 8663 | -8/Recycling | Build established: Commander-Mutant 9249 | -8/Recycling | Discovered new exit (range 12) 9968 | -8/Recycling | Learned 2 Lower Caves zone layouts 10096 | -8/Recycling | Learned location of Lower Caves (-7) 10144 | -8/Recycling | Learned 4 Factory zone layouts 10184 | -8/Recycling | Learned location of 2 exits from Factory 10213 | -8/Recycling | Learned location of 2 exits from Lower Caves 10230 | -8/Recycling | Learned location of Lower Caves (-7) 10257 | -8/Recycling | Learned Storage security intel 10296 | -8/Recycling | Learned 4 Lower Caves zone layouts 10402 | -8/Recycling | Learned Storage emergency access door positions 10455 | -8/Recycling | Scanned before Scraplab entrance 10480 | -8/Recycling | Entered Scraplab 10532 | -8/Recycling | Discovered new exit (range 3) 10534 | -8/Recycling | Identified exit to Scraptown 10540 | -8/Recycling | Entered Scraptown 10540 | -8/Scraptown | Accompanied by 15 allies 10630 | -8/Scraptown | Attached CPS modules to Technician 3a. 10648 | -8/Scraptown | Attached CPS modules to Bruiser 3b. 10929 | -8/Scraptown | Discovered new exit (range 11) 11039 | -8/Scraptown | Visited Assassins FH 11057 | -8/Scraptown | Visited TADAMA 11160 | -8/Scraptown | Visited Red Mages 11178 | -8/Scraptown | Visited Spacefarers 11192 | -8/Scraptown | Visited Symbiants 11249 | -8/Scraptown | Visited SPCMW 11259 | -8/Scraptown | Visited Cave Peace 11292 | -8/Scraptown | Visited UFD Registry 11292 | -8/Scraptown | Registered with UFD as "Kinetisink" 11402 | -8/Scraptown | Visited Scrapoid Research Area 11427 | -8/Scraptown | Visited Botcube Research 11445 | -8/Scraptown | Visited Scrapoid Pod Storage 11469 | -8/Scraptown | Visited Research Penetration Think Tank 11505 | -8/Scraptown | Visited Observation Area 11606 | -8/Scraptown | Visited Analyses Database 11644 | -8/Scraptown | Visited Science Guys 12369 | -8/Scraptown | Murdered 3 allies 12549 | -8/Scraptown | Found Lrg. Botcube 13476 | -8/Scraptown | Found Scrap Suit 14035 | -8/Scraptown | Lrg. Botcube activated 14071 | -8/Scraptown | Lrg. Botcube completed mutation into legged form, armed with 4 guns. 14222 | -8/Scraptown | Attached CPS modules to *Grunt Trash. 14319 | -8/Scraptown | Met Optimus 14319 | -8/Scraptown | Accepted into 0bPrime 14397 | -8/Scraptown | Discovered new exit (range 5) 14407 | -8/Scraptown | Identified exit to Factory 14416 | -8/Scraptown | Entered Factory 14416 | -6/Factory | Accompanied by 9 allies 14416 | -6/Factory | Evolved 4 slots: Propulsion x2, Utility x2 14417 | -6/Factory | Identified exit to Lower Caves 14418 | -6/Factory | Identified exit to Factory 14802 | -6/Factory | Garrison activated, responded to threat 14821 | -6/Factory | Allied Derelicts emerged from ambush trap array 14923 | -6/Factory | Loaded intel: 8 recycling unit locations 14949 | -6/Factory | Learned location of Protoforge (-2) 15172 | -6/Factory | Discovered exit to Factory (range 11) 15179 | -6/Factory | Fabricated Exp. Sensor Array? 15366 | -6/Factory | Build established: Hacker-Scout 15439 | -6/Factory | Fabricated Cld. Plasma Cannon? 15689 | -6/Factory | Manually triggered Chute Trap 15689 | -6/Factory | Sucked down chute 15689 | -6/Factory | Entered Waste 15695 | -6/Waste | Spotted C-40 Crusher 15696 | -6/Waste | Spotted C-40 Crusher 15699 | -6/Waste | Spotted C-40 Crusher 15704 | -6/Waste | EMP discharged 15704 | -6/Waste | Spotted C-40 Crusher 15704 | -6/Waste | Spotted C-40 Crusher 15717 | -6/Waste | Spotted C-40 Crusher 15719 | -6/Waste | Discovered new exit (range 16) 15723 | -6/Waste | Identified exit to Factory 15724 | -6/Waste | Entered Factory 15856 | -6/Factory | Repaired Imp. Flight Unit 16116 | -6/Factory | Found Prototype Processor 16116 | -6/Factory | Identified Exp. Targeting Computer 16138 | -6/Factory | Fabricated Hyp. Gauss Cannon? 16169 | -6/Factory | Loaded intel: 8 recycling unit locations 16216 | -6/Factory | Allied Derelicts emerged from ambush trap array 16288 | -6/Factory | Discovered exit to Factory (range 16) 16341 | -6/Factory | Repaired Broken Imp. Flight Unit? 16669 | -6/Factory | Fabricated Imp. Flight Unit (x1) 16737 | -6/Factory | Entered Lower Caves 16738 | -6/Lower Caves | Identified exit to Lower Caves 16781 | -6/Lower Caves | A Derelict revealed a hidden shortcut to meet someone special 17054 | -6/Lower Caves | Learned Research trap positions 17054 | -6/Lower Caves | Learned Factory garrison access intel 17054 | -6/Lower Caves | Learned Research garrison access intel 17081 | -6/Lower Caves | Entered another Lower Caves area 17082 | -6/Lower Caves | Identified exit to Data Miner 17093 | -6/Lower Caves | Learned 4 Factory zone layouts 17110 | -6/Lower Caves | Discovered exit to Factory (range 12) 17290 | -6/Lower Caves | Entered an active Warlord outpost 17293 | -6/Lower Caves | A Commander dispatched an escort 17301 | -6/Lower Caves | Learned Factory security intel 17301 | -6/Lower Caves | Learned Extension terminal intel 17301 | -6/Lower Caves | Learned Armory garrison access intel 17469 | -6/Lower Caves | Learned 4 Factory zone layouts 17725 | -6/Lower Caves | Entered Data Miner 17725 | -6/Data Miner | Discovered new exit (range 6) 17730 | -6/Data Miner | Met Data Miner 17735 | -6/Data Miner | Learned location of Section 7 (-2) 17735 | -6/Data Miner | Acquired the access code to Warlord's prototype stash 17739 | -6/Data Miner | Received God Mode back door access code from Data Miner 17746 | -6/Data Miner | Identified exit to Proximity Caves 17747 | -6/Data Miner | Entered Proximity Caves 17791 | -5/Proximity Caves | Learned location of Warlord (-5) 17814 | -5/Proximity Caves | Found Alien Artifact 17814 | -5/Proximity Caves | Identified Core Expander 17814 | -5/Proximity Caves | Installed Core Expander, added new Utility slot 17931 | -5/Proximity Caves | Learned Factory interactive machine intel 17933 | -5/Proximity Caves | Discovered exit to Factory (range 13) 18025 | -5/Proximity Caves | Entered Factory 18025 | -5/Factory | Evolved 2 slots: Power x1, Propulsion x1 18026 | -5/Factory | Identified exit to Upper Caves 18027 | -5/Factory | Identified exit to Factory 18029 | -5/Factory | Loaded intel: 56 interactive machine locations 18030 | -5/Factory | Loaded intel: 4 garrison access locations 18032 | -5/Factory | Loaded intel: 8 recycling unit locations 18093 | -5/Factory | Repaired Imp. Light Armor Plating 18249 | -5/Factory | Repaired Imp. Flight Unit 18353 | -5/Factory | Sucked down chute 18353 | -5/Factory | Entered Waste 18354 | -5/Waste | Found Prototype Device 18357 | -5/Waste | Spotted C-40 Crusher 18358 | -5/Waste | Spotted C-40 Crusher 18361 | -5/Waste | Spotted C-40 Crusher 18362 | -5/Waste | Spotted C-40 Crusher 18368 | -5/Waste | EMP discharged 18368 | -5/Waste | Spotted C-40 Crusher 18368 | -5/Waste | Discovered new exit (range 10) 18372 | -5/Waste | Identified exit to Factory 18372 | -5/Waste | Entered Factory 18478 | -5/Factory | Loaded intel: 8 recycling unit locations 18559 | -5/Factory | Identified Imp. Particle Accelerator 18619 | -5/Factory | Identified exit to Extension 18663 | -5/Factory | Fabricated Imp. System Restoration Module? 18751 | -5/Factory | Unchained authorized (GL-D0S) 18892 | -5/Factory | Entered Upper Caves 19015 | -5/Upper Caves | Discovered new exit (range 3) 19015 | -5/Upper Caves | Identified exit to Upper Caves 19016 | -5/Upper Caves | Entered another Upper Caves area 19030 | -5/Upper Caves | Discovered exit to Factory (range 11) 19189 | -5/Upper Caves | Discovered new exit (range 16) 19214 | -5/Upper Caves | Attracted the attention of an 0b10 checkpoint 19270 | -5/Upper Caves | Identified exit to Warlord 19270 | -5/Upper Caves | Entered Warlord 19314 | -5/Warlord | Opened Warlord's prototype stash 19315 | -5/Warlord | Found Prototype Device 19315 | -5/Warlord | Identified Thermal Barrier 19318 | -5/Warlord | Found Prototype Device 19318 | -5/Warlord | Identified Exp. Cloaking Device 19436 | -5/Warlord | Warlord's base attacked by MAIN.C 19765 | -5/Warlord | Lost 3 allies 19786 | -5/Warlord | Warlord forces counterattacked 19837 | -5/Warlord | Spotted Striker 19838 | -5/Warlord | Spotted Striker 19877 | -5/Warlord | Discovered new exit (range 12) 19880 | -5/Warlord | Identified exit to Proximity Caves 19881 | -5/Warlord | Destroyed 8 combat bots 19907 | -5/Warlord | Entered Proximity Caves 19907 | -4/Proximity Caves | Accompanied by 2 allies 20409 | -4/Proximity Caves | Learned location of 1 exit from Research 20704 | -4/Proximity Caves | Discovered exit to Factory (range 13) 20736 | -4/Proximity Caves | Entered Factory 20736 | -4/Factory | Accompanied by 4 allies 20736 | -4/Factory | Evolved 2 slots: Utility x2 20746 | -4/Factory | Identified exit to Upper Caves 21061 | -4/Factory | Repaired Centrium Light Armor Plating 21090 | -4/Factory | Repaired Hyp. Gauss Cannon+ 21116 | -4/Factory | Repaired Lgt. Fission Core+ 21139 | -4/Factory | Repaired Hvy. Missile Launcher+ 21242 | -4/Factory | Loaded intel: 8 recycling unit locations 21362 | -4/Factory | Fabricated D-63 Destroyer? 21397 | -4/Factory | Repaired Imp. VTOL Module? 21529 | -4/Factory | Sucked down chute 21529 | -4/Factory | Entered Waste 21534 | -4/Waste | Warlord forces began an assault 21547 | -4/Waste | Spotted C-40 Crusher 21570 | -4/Waste | Allies destroyed C-40 Crusher 21575 | -4/Waste | Spotted C-40 Crusher 21583 | -4/Waste | Destroyed C-40 Crusher 21586 | -4/Waste | Spotted C-40 Crusher 21592 | -4/Waste | Spotted C-40 Crusher 21600 | -4/Waste | Spotted C-40 Crusher 21615 | -4/Waste | Allies destroyed C-40 Crusher 21622 | -4/Waste | Allies destroyed C-40 Crusher 21638 | -4/Waste | Discovered new exit (range 12) 21645 | -4/Waste | Lost 3 allies 21710 | -4/Waste | Identified exit to Factory 21762 | -4/Waste | Entered Factory 21762 | -4/Factory | Accompanied by 8 allies 21963 | -4/Factory | Fabricated Cmb. Linear Gravjet? 21994 | -4/Factory | Repaired Cmb. Linear Gravjet? 22075 | -4/Factory | Repaired Hyp. Railgun 22207 | -4/Factory | Fabricated Cmb. Linear Gravjet? 22260 | -4/Factory | Loaded intel: 8 recycling unit locations 22344 | -4/Factory | Fabricated Cld. Gravmag System (x1) 22608 | -4/Factory | System corruption reached 10% 22670 | -4/Factory | Lost 7 parts (2p1n2u2w) 22756 | -4/Factory | Repaired Cmb. Linear Gravjet? 22842 | -4/Factory | Repaired Cmb. Linear Gravjet? 22961 | -4/Factory | Repaired Centrium Light Armor Plating 23062 | -4/Factory | Repaired Cmb. Linear Gravjet 23083 | -4/Factory | Central database locked down 23138 | -4/Factory | Repaired Cmb. Linear Gravjet? 23282 | -4/Factory | Identified exit to Research 23321 | -4/Factory | Incoming investigation squad redirected 23364 | -4/Factory | Learned Research security intel 23377 | -4/Factory | Incoming investigation squad redirected 23422 | -4/Factory | Core integrity fell below 50% 23496 | -4/Factory | Learned location of 1 exit from Proximity Caves 23502 | -4/Factory | Found Prototype Processor 23531 | -4/Factory | Identified Exp. Signal Interpreter 23588 | -4/Factory | Learned Testing stockpile data 23662 | -4/Factory | Learned 4 Quarantine zone layouts 23670 | -4/Factory | Incoming investigation squad redirected 23691 | -4/Factory | Fabricated Cld. Gravmag System? 23696 | -4/Factory | Found Com. Tesla Bomb Launcher 23715 | -4/Factory | Learned 2 Upper Caves zone layouts 23742 | -4/Factory | Entered Upper Caves 23844 | -4/Upper Caves | Learned 8 Research zone layouts 23854 | -4/Upper Caves | Discovered new exit (range 12) 23871 | -4/Upper Caves | Identified exit to Upper Caves 23875 | -4/Upper Caves | Entered another Upper Caves area 23877 | -4/Upper Caves | Attracted the attention of an 0b10 checkpoint 23895 | -4/Upper Caves | Discovered exit to Research (range 15) 24087 | -4/Upper Caves | Discovered new exit (range 7) 24090 | -4/Upper Caves | Identified exit to Zhirov 24102 | -4/Upper Caves | Entered Zhirov 24102 | -4/Zhirov | Discovered new exit (range 3) 24111 | -4/Zhirov | Met Zhirov 24126 | -4/Zhirov | Learned location of Quarantine (-3) 24126 | -4/Zhirov | Learned location of Testing (-2) 24126 | -4/Zhirov | Learned location of Command (-1) 24129 | -4/Zhirov | Zhirov requested help retrieving the SGEMP Prototype 24136 | -4/Zhirov | Found Alien Artifact 24136 | -4/Zhirov | Identified Integrated Dissipator 24136 | -4/Zhirov | Installed Integrated Dissipator, increased core heat dissipation (+20) 24187 | -4/Zhirov | Found Alien Artifact 24235 | -4/Zhirov | Identified exit to Proximity Caves 24235 | -4/Zhirov | Entered Proximity Caves 24471 | -3/Proximity Caves | Attracted the attention of an 0b10 checkpoint 24506 | -3/Proximity Caves | Destroyed 8 combat bots 24709 | -3/Proximity Caves | Entered Research 24709 | -3/Research | Evolved 2 slots: Utility x2 24710 | -3/Research | Identified exit to Armory 24711 | -3/Research | Identified exit to Research 24713 | -3/Research | Loaded intel: 65 trap records 24715 | -3/Research | Loaded intel: 2 garrison access locations 24719 | -3/Research | Central database locked down 24719 | -3/Research | Identified Transdimensional Reconstructor 24809 | -3/Research | Discovered new exit (range 15) 24865 | -3/Research | Identified exit to Quarantine 24928 | -3/Research | Entered Quarantine 24986 | -3/Quarantine | Found Alien Impact Weapon 25000 | -3/Quarantine | Found Alien Artifact 25056 | -3/Quarantine | Found Alien Artifact 25057 | -3/Quarantine | Identified Subatomic Replicator 25057 | -3/Quarantine | Used Subatomic Replicator to create Alien Artifact 25373 | -3/Quarantine | Learned Research emergency access door positions 25437 | -3/Quarantine | Learned 8 Section 7 zone layouts 25492 | -3/Quarantine | Learned Testing garrison access intel 25514 | -3/Quarantine | Discovered exit to Research (range 16) 25517 | -3/Quarantine | Spotted Alpha 7 25540 | -3/Quarantine | Build established: Hacker-Mutant 25570 | -3/Quarantine | Learned Research garrison access intel 25622 | -3/Quarantine | Learned Section 7 interactive machine intel 25699 | -3/Quarantine | Found Alien Slashing Weapon 25726 | -3/Quarantine | Entered Research 25726 | -2/Research | Evolved 2 slots: Propulsion x1, Utility x1 25727 | -2/Research | Identified exit to Access 25727 | -2/Research | Identified exit to Testing 25729 | -2/Research | Loaded intel: 4 garrison access locations 25764 | -2/Research | Spotted B-90 Cyclops 25835 | -2/Research | Garrison activated, responded to threat 26058 | -2/Research | Destroyed 11 combat bots 26093 | -2/Research | Identified Supercharged TR 26093 | -2/Research | Identified Dimensional Node Initializer 26093 | -2/Research | Identified Core Stripper 26093 | -2/Research | Identified Sigix Broadsword 26162 | -2/Research | Lost 3 parts (1p1n1w) 26221 | -2/Research | Entered Testing 26223 | -2/Testing | Loaded intel: 1 garrison access location 26244 | -2/Testing | Crushed by falling debris 26244 | -2/Testing | System corruption reached 10% 26273 | -2/Testing | Found Hellfire Missile Launcher 26307 | -2/Testing | Central database locked down 26371 | -2/Testing | Found Prototype Processor 26390 | -2/Testing | Identified Spectral Analyzer 26471 | -2/Testing | Spotted PD-5VGX9L9RL7 26492 | -2/Testing | Found Prototype Launcher 26505 | -2/Testing | Identified Z-bomb Delivery System 26510 | -2/Testing | Protovariant out of control (PD-5VGX9L9RL7) 26510 | -2/Testing | Unleashed a protovariant (PD-5VGX9L9RL7) 26535 | -2/Testing | Unchained authorized (DW-4LL) 26539 | -2/Testing | Spotted Striker 26539 | -2/Testing | Spotted Striker 26546 | -2/Testing | Found Exp. Transmission Jammer 26623 | -2/Testing | Spotted Fortress 26652 | -2/Testing | Discovered new exit (range 6) 26652 | -2/Testing | Discovered new exit (range 7) 26654 | -2/Testing | Entered Protoforge 26661 | -2/Protoforge | Spotted Hotshot 26729 | -2/Protoforge | Spotted Hotshot 26803 | -2/Protoforge | Superfortress began startup sequence 27005 | -2/Protoforge | Spotted AP7-3 27006 | -2/Protoforge | Spotted AP7-3 27008 | -2/Protoforge | Core integrity fell below 50% 27029 | -2/Protoforge | Spotted EXE-6 27029 | -2/Protoforge | Spotted EXE-6 27039 | -2/Protoforge | Spotted SKR-2 27049 | -2/Protoforge | UFD initiated attack on Protoforge (Readiness: Maximal) 27049 | -2/Protoforge | Loaded intel: 3 recycling unit locations 27069 | -2/Protoforge | Found Prototype Ballistic Gun 27069 | -2/Protoforge | Identified Cep. XC Strikerail 27071 | -2/Protoforge | Found Cep. XC Strikerail 27073 | -2/Protoforge | Found Prototype Processor 27073 | -2/Protoforge | Identified Exp. Core Analyzer 27075 | -2/Protoforge | Found Prototype Processor 27075 | -2/Protoforge | Identified Exp. Armor Integrity Analyzer 27078 | -2/Protoforge | Scrapoids reinforcements arrived? 27078 | -2/Protoforge | Found Prototype Device 27078 | -2/Protoforge | Identified Exp. Kinecellerator 27085 | -2/Protoforge | Optimus greeted in Protoforge 27086 | -2/Protoforge | Found Cep. XC Strikerail 27088 | -2/Protoforge | Found Prototype Processor 27088 | -2/Protoforge | Identified Exp. Target Analyzer 27090 | -2/Protoforge | Found Cep. XC Strikerail 27097 | -2/Protoforge | Found Exp. Targeting Computer 27102 | -2/Protoforge | Initialized slip node 27104 | -2/Protoforge | Lost 3 allies 27157 | -2/Protoforge | Spotted Overlord 27194 | -2/Protoforge | Lost 3 parts (2n1u) 27207 | -2/Protoforge | Found Prototype Device 27229 | -2/Protoforge | Lost 7 allies 27248 | -2/Protoforge | Warped through subspace to slip node 27249 | -2/Protoforge | Optimus attacked Superfortress 27249 | -2/Protoforge | Spotted Decapitator 27250 | -2/Protoforge | Core integrity fell below 20% 27252 | -2/Protoforge | Spotted Decapitator 27258 | -2/Protoforge | Spotted Decapitator 27276 | -2/Protoforge | Found Prototype Power Core 27276 | -2/Protoforge | Identified Cep. Zero-point Core 27279 | -2/Protoforge | Met 7R-MNS 27279 | -2/Protoforge | Found Prototype Ballistic Cannon 27285 | -2/Protoforge | Lost 13 parts (1p7n3u2w) 27294 | -2/Protoforge | Lost 12 allies 27301 | -2/Protoforge | Found Prototype Energy Cannon 27301 | -2/Protoforge | Identified Cep. Plasma Driver 27308 | -2/Protoforge | Found Cep. Zero-point Core 27317 | -2/Protoforge | Found Prototype Device 27317 | -2/Protoforge | Identified Exp. Force Field 27321 | -2/Protoforge | Found Prototype Storage 27321 | -2/Protoforge | Identified Cep. NT7 Matterbank 27326 | -2/Protoforge | Found Thermal Barrier 27380 | -2/Protoforge | Found Exp. Core Analyzer 27392 | -2/Protoforge | Identified Cep. Antimissile System 27395 | -2/Protoforge | Identified Cep. Helical Railcannon 27455 | -2/Protoforge | Build established: Scavenger-Mutant 27474 | -2/Protoforge | Spotted Striker 27476 | -2/Protoforge | Spotted Executioner 27478 | -2/Protoforge | Spotted Executioner 27479 | -2/Protoforge | Destroyed Striker 27483 | -2/Protoforge | Spotted Executioner 27494 | -2/Protoforge | Spotted Executioner 27495 | -2/Protoforge | Spotted Executioner 27498 | -2/Protoforge | Spotted Executioner 27507 | -2/Protoforge | Spotted Executioner 27509 | -2/Protoforge | Spotted Striker 27510 | -2/Protoforge | Spotted Striker 27511 | -2/Protoforge | Destroyed Striker 27516 | -2/Protoforge | Destroyed Executioner 27518 | -2/Protoforge | Destroyed Executioner 27546 | -2/Protoforge | Lost 6 allies 27564 | -2/Protoforge | Destroyed 22 combat bots 27614 | -2/Protoforge | Spotted Executioner 27627 | -2/Protoforge | Destroyed 7 combat bots 27742 | -2/Protoforge | System corruption reached 30% 27745 | -2/Protoforge | Found Prototype Protection 27745 | -2/Protoforge | Identified Cep. RG22 Armor 27748 | -2/Protoforge | Found Prototype Protection 27748 | -2/Protoforge | Identified Cep. Core Shell 27753 | -2/Protoforge | Found Cep. Core Shell 27755 | -2/Protoforge | Found Cep. Core Shell 27760 | -2/Protoforge | Found Faulty Cep. RG22 Armor 27784 | -2/Protoforge | UFD reported confirmed Drillbomb installation 27790 | -2/Protoforge | Found Prototype Device 27806 | -2/Protoforge | Spotted V110-s 27858 | -2/Protoforge | Scanned by Researcher 27862 | -2/Protoforge | Destroyed V110-s 27887 | -2/Protoforge | Found Adv. Powered Armor 27941 | -2/Protoforge | Identified Crosscalibrator 28160 | -2/Protoforge | Spotted Striker 28170 | -2/Protoforge | Found 0bPrime Scrap Suit 28175 | -2/Protoforge | Spotted Executioner 28231 | -2/Protoforge | P-80 Master assimilated allied 02FAW-D 28240 | -2/Protoforge | Spotted Executioner 28241 | -2/Protoforge | Spotted Striker 28258 | -2/Protoforge | Destroyed Executioner 28266 | -2/Protoforge | Lost 16 allies 28322 | -2/Protoforge | Spotted Hotshot 28354 | -2/Protoforge | Spotted Hotshot 28355 | -2/Protoforge | Spotted Hotshot 28357 | -2/Protoforge | Destroyed Hotshot 28360 | -2/Protoforge | Destroyed Hotshot 28363 | -2/Protoforge | Destroyed Hotshot 28512 | -2/Protoforge | Found UFD Drillbomb 28545 | -2/Protoforge | Installed UFD Drillbomb at designated target 28545 | -2/Protoforge | UFD reported confirmed Drillbomb installation 28565 | -2/Protoforge | Spotted Striker 28569 | -2/Protoforge | Spotted Striker 28592 | -2/Protoforge | Found UFD Drillbomb 28645 | -2/Protoforge | Installed UFD Drillbomb at designated target 28645 | -2/Protoforge | UFD reported confirmed Drillbomb installation 28791 | -2/Protoforge | Found UFD Drillbomb 28797 | -2/Protoforge | Spotted Striker 28860 | -2/Protoforge | Spotted Striker 28862 | -2/Protoforge | Spotted Striker 28870 | -2/Protoforge | Spotted Striker 28872 | -2/Protoforge | Spotted Striker 28873 | -2/Protoforge | Destroyed Striker 28908 | -2/Protoforge | Build established: Scavenger-Scrapper 28920 | -2/Protoforge | Lost 4 allies 28959 | -2/Protoforge | Installed UFD Drillbomb at designated target 28959 | -2/Protoforge | UFD reported confirmed Drillbomb installation 29026 | -2/Protoforge | Spotted Striker 29071 | -2/Protoforge | Lost 4 allies 29080 | -2/Protoforge | Spotted Striker 29081 | -2/Protoforge | Spotted Striker 29097 | -2/Protoforge | Found UFD Drillbomb 29164 | -2/Protoforge | Installed UFD Drillbomb at designated target 29164 | -2/Protoforge | UFD reported confirmed Drillbomb installation 29178 | -2/Protoforge | Spotted Executioner 29184 | -2/Protoforge | Spotted Executioner 29216 | -2/Protoforge | Destroyed Executioner 29236 | -2/Protoforge | Spotted Hotshot 29265 | -2/Protoforge | Spotted Executioner 29267 | -2/Protoforge | Spotted Striker 29281 | -2/Protoforge | Destroyed Executioner 29286 | -2/Protoforge | Destroyed Striker 29307 | -2/Protoforge | Spotted Executioner 29416 | -2/Protoforge | Spotted Striker 29423 | -2/Protoforge | Spotted Striker 29427 | -2/Protoforge | Destroyed Striker 29427 | -2/Protoforge | Destroyed Striker 29435 | -2/Protoforge | Found UFD Drillbomb 29470 | -2/Protoforge | Destroyed 9 combat bots 29487 | -2/Protoforge | Spotted B-90 Cyclops 29529 | -2/Protoforge | Spotted Executioner 29531 | -2/Protoforge | Spotted Striker 29533 | -2/Protoforge | Spotted Striker 29538 | -2/Protoforge | Destroyed Striker 29546 | -2/Protoforge | Destroyed Striker 29559 | -2/Protoforge | Discovered exit to Access (range 15) 29598 | -2/Protoforge | Destroyed 19 combat bots 29599 | -2/Protoforge | Spotted Striker 29599 | -2/Protoforge | Spotted Striker 29599 | -2/Protoforge | Spotted Striker 29599 | -2/Protoforge | Spotted Executioner 29604 | -2/Protoforge | Installed UFD Drillbomb at designated target 29604 | -2/Protoforge | UFD reported confirmed Drillbomb installation 29632 | -2/Protoforge | P-80 Master assimilated allied Lugger 503 29646 | -2/Protoforge | Destroyed by S-43 Plague with Heavy Machine Gun Last Messages --------------- 29626_ B-90 Cyclops suffers critical hit (Destroy). 29627_ Acquired 116 matter. 29627_ Ovr. Huge Scrapsphere repairs itself (+41). 29627_ Acquired 83 matter. 29628_ 02FFL-D destroyed. 29629_ 02FFM-D destroyed. 29630_ Ovr. Huge Scrapsphere repairs itself (+21). 29631_ 02FFN-D cannibalizes 0bPrime Scrap Suit to repair Unknown Device. 29631_ Slug penetrates B-90 Cyclops. 29632_ P-80 Master hacks Lugger 503, assimilated. 29633_ 02FFN-D destroyed. 29634_ System corrupted: Matter fused (-5). 29634_ 0bP_NET: Lugger 486 inbound, all units not involved in other operations escort to target. 29634_ N-04 Retriever collects Enh. Biometal Leg. 29638_ Cep. Core Shell destroyed. 29642_ Lugger 503 reactivates. 29642_ Mak. Medium Armor Plating destroyed. 29643_ Ovr. Huge Scrapsphere repairs itself (+1). Map ----- +----------------------------------------------------+ | ??????? | | ??????? | | ###????#####!!!!##### ]]]##### | | ###????#####????#####"""?#####"""""""""""""""""""" | | ?########?########?########?##"""""""""""""""""""" | | ?########?########?########?##"""""""""""""""""""" | | ????????????????????????????###################### | | ????????????????????????????###################### | | ?????????????????????????????????????????????????? | | ?????????????????????????????????????????????????? | | ?????????######??????????????????????????????##### | | ??##?????######??????????????????????????????##### | | ## ########""###############?????????????????##?? | | #""########T"################??##????????????##?? | | ? ## ## #####????????##?? | | ?????? ###;#;#####????????##??? | | ???????????? o # ##???###??## | | ########+######### ## ; #""" ;##?# #?# # | | # # #""" ; ## ### ; | | # """ # # " !# !# ; | | # # +%%] * ;;;=;;; = "] | | # """ # # " ;*%%% ####; "& | | + ; ; % % %;%%%% ! %% | | # """ #; % %%%%%% n%% | | # #% s %K ; % % % %% %% %%%%& | | #########; ;; %%[ sK@%;;;% #! " % "%=% | | #### # ####;% % K ;% = #""######=!==!= | | "!#=%"## ;#;;[ % %;% # ##### !! !% | | "="!*[ % s!s % %%%% %%% % #####???### !% | | %=!%!!* !m %!% %&%%% %%;% % % ##?######## # !% | | %!!![ %!%! p %%%% % %%;] ;#?#######"##"""% | | =!% =!!&% [ %%; % #####??? #" | | !!! =!!%=%==%===*[;;#;;######????"" #% | | "" A !%[%%%!%!*% ! % ##??????" # | | " " %;#*!!%=!&*[ ; ##??????" "%% | | """ ### ![%/*!*%% ;% ##?????? #! | | "" ### =!=&%!=% ; ! ##??????" #=* | | !!!#=##+######;;;*==!=& % "" "" ;#??????" #"" | | "!!*!*[ # !]*!=% """ " ;#?????? ## | | "!=!%!! """ # ""!!%%%%% " """" ############## | | ""=%!+|! """ # """ *!%%;=" " " ############# | | =*%&!%[ "" ; ;!% ;%######"### ##??????## | | ==%!%!= # """ ; % # # = # #######[[ | | %%===# """ # " ; %;; # ##" #"#"""#### """% | | /%*=*" """ # "" ; ; % % & % %%%% | | [/!![# "" # """ ## ; %% % % %% | | [%#### # #[ % j % % % | | /%############" " ; s % %"%"%% | | !%!############ # #; #!"#""""""""%" ! | | #%[#?????????############ # / # " !=# | +----------------------------------------------------+ Best States ------------- Heat Dissipation 95 Coolant Potential 120 Energy Generation 61 Energy Capacity 865 Matter Stores 300 Matter Capacity 600 Sight Range 24 Robot Scan Range 20 Terrain Scan Density 110 ECM Strength 1 Jamming Range 22 Cloak Strength 4 Additional Mass Support 12 Armor Coverage 700 Resistance: TH 50 Resistance: EM 15 Core Shielding 90 Propulsion Shielding 90 Melee Speed Boost 30 Evasion (%) 78 Targeting Accuracy 12 Target Analysis 10 Core Analysis 12 Armor Integrity Analysis 50 Recoil Reduction 3 Kinecelleration 66 Offensive Hacking 52 Defensive Hacking 12 Authchip Count 1 Trap Extractor Capacity 6 Item Schematics ----------------- Exp. Sensor Array | -8/Materials | Scanalyzed Imp. Flight Unit | -8/Materials | Scanalyzed ECM Suite | -8/Materials | Scanalyzed Plasma Cutter | -8/Materials | Scanalyzed Triangulator | -8/Storage | Hacked Hyp. Gauss Cannon | -6/Factory | Hacked Imp. Light Armor Plating | -6/Factory | Scanalyzed Cld. Plasma Cannon | -6/Factory | Scanalyzed Nanoactuators | -6/Factory | Scanalyzed Imp. System Restoration Module | -6/Factory | Scanalyzed Hcp. Battery | -6/Factory | Extracted Imp. Trap Scanner | -6/Factory | Extracted Melee Analysis Suite | -6/Factory | Extracted Adv. Assault Cannon | -6/Factory | Extracted Combat Drone Bay | -6/Data Miner | Free Lgt. Regenerative Plating | -6/Data Miner | Free Cld. Gravmag System | -6/Data Miner | Free Prc. Energy Filter | -6/Data Miner | Free Enh. Force Rifle | -6/Data Miner | Free Imp. Antigrav System | -6/Data Miner | Free Phase Gun | -6/Data Miner | Free HERF Cannon | -6/Data Miner | Free Nova Cannon | -6/Data Miner | Free Cmb. Gravmag System | -5/Factory | Hacked Neutron Missile Launcher | -4/Factory | Hacked Cmb. Linear Gravjet | -4/Factory | Scanalyzed Assault Drone Bay | -4/Zhirov | Free Exp. Heat Sink | -4/Zhirov | Free Exp. Optical Array | -4/Zhirov | Free Imp. Arc Thrower | -4/Zhirov | Free Hvy. Dispersion Rifle | -2/Protoforge | Archive Exp. Power Amplifier | -2/Protoforge | Archive Robot Schematics ------------------ S-27 Virus | -6/Factory | Hacked B-48 Gladiator | -6/Data Miner | Free D-63 Destroyer | -6/Data Miner | Free G-50 Soldier | -6/Data Miner | Free A-15 Conveyor | -6/Data Miner | Free Fabricated ------------ Exp. Sensor Array | x1 | -6/Factory Cld. Plasma Cannon | x1 | -6/Factory Hyp. Gauss Cannon | x2 | -6/Factory Imp. Flight Unit | x1 | -6/Factory Imp. System Restoration Module | x2 | -5/Factory D-63 Destroyer | x1 | -4/Factory | Preloaded Cmb. Linear Gravjet | x2 | -4/Factory | Authchip Cmb. Linear Gravjet | x2 | -4/Factory | Authchip Cld. Gravmag System | x1 | -4/Factory Cld. Gravmag System | x1 | -4/Factory Repaired ---------- Plasma Cutter | 99% | -8/Materials | Broken Lgt. Treads | 35% | -8/Materials Adv. Treads | 37% | -8/Materials Imp. Flight Unit | 65% | -6/Factory Imp. Flight Unit | 99% | -6/Factory | Broken Imp. Light Armor Plating | 46% | -5/Factory Imp. Flight Unit | 47% | -5/Factory Centrium Light Armor Plating | 60% | -4/Factory Hyp. Gauss Cannon | 33% | -4/Factory Lgt. Fission Core | 21% | -4/Factory Hvy. Missile Launcher | 54% | -4/Factory Imp. VTOL Module | 28% | -4/Factory Cmb. Linear Gravjet | 50% | -4/Factory Hyp. Railgun | 49% | -4/Factory Cmb. Linear Gravjet | 25% | -4/Factory Cmb. Linear Gravjet | 49% | -4/Factory Centrium Light Armor Plating | 42% | -4/Factory Cmb. Linear Gravjet | 60% | -4/Factory Cmb. Linear Gravjet | 73% | -4/Factory Studied --------- Lgt. Fission Core | -6/Factory | Hacked Lrn. Missile Launcher | -6/Factory | Hacked Hvy. Mace | -6/Factory | Hacked Hyp. Gauss Cannon | -6/Factory | Hacked Hvy. Missile Launcher | -6/Factory | Hacked Power Sword | -6/Factory | Hacked Micro-nuke Launcher | -4/Factory | Hacked Cmb. Linear Gravjet | -3/Research | Hacked Com. HERF Cannon | -3/Quarantine | Hacked Cmb. Antigrav System | -3/Quarantine | Hacked Nova Cannon | -3/Quarantine | Hacked Particle Reactor | -3/Quarantine | Hacked Mic. Antimatter Reactor | -2/Research | Hacked Enh. Nova Cannon | -2/Testing | Hacked Lgt. Quantum Reactor | -2/Protoforge | Hacked Alien Tech Used ----------------- Core Expander Integrated Dissipator Subatomic Replicator Sigix Broadsword Dimensional Node Initializer Supercharged TR Core Stripper Achievements -------------- Dominance Asserted Challenges ------------ None Game ------ Seed CompanionBiocellProjector Manual? 0 Play Time 05:42:02 Cumulative 2039.3 hours Start 2025.11.16 @ 20:49:19 End 2025.11.17 @ 03:17:27 Sessions 3 Manual Loads 0 Difficulty Rogue Special Mode None Game No. 1320 Rogue 1316 Adventurer 4 Explorer 0 Win Type - Total 274 Types 205/13/21/10/3/1/4/10/5/2 Lore% 98 Gallery% 96 Achievement% 86 Wizard Run 0 Options --------- Layout 2 ASCII 0 Keyboard 1 Movement Vi Keybinds 0 Fullscreen 0 Font 24/Terminus Map View 59x48 Zoom Use 0% Tactical HUD 1 Map Filters NONE Filters NONE Steam 1 RUN: 7d1b6c39-99c1-426d-91a8-14f5f7cde37d